Body Name,Body,Service Division Label,Service Division Code,Organisational Unit,Expenditure Category,Expenditure Code,CIPFA detailed expediture type,CIPFA detailed expediture code,Narrative,Date,Transaction number,Net Amount,Capital and Revenue,Supplier Name,Supplier ID,,
Chorley Borough Council,http://statistics.data.gov.uk/id/local-authority/30UE,Central Support Services,1009,Early Intervention,Works In Default,40199,Miscellaneous Expenses,5034,Please carry out the following works at ADDRESS REDACTED as per the estimate received on 22nd October. 1. ,07/12/2018,0134342,"1,751.80",Revenue,3D Environmental Limited,76994,,
Chorley Borough Council,http://statistics.data.gov.uk/id/local-authority/30UE,Democratic Represent and  Mgnt,1007,Policy & Governance,Exhibitions & Special Events,40158,Miscellaneous Expenses,5034,Re-enactor display of redcoats at Astley Illuminated event on 24/11/18.,19/12/2018,0134522,500.00,Revenue,47th Regiment of Foot,76673,,
Chorley Borough Council,http://statistics.data.gov.uk/id/local-authority/30UE,Democratic Represent and  Mgnt,1007,Policy & Governance,Exhibitions & Special Events,40158,Miscellaneous Expenses,5034,As detailed on the order form sent through on 25th October. All presents from the 4.50 gift wrapped range.,19/12/2018,0134580,"3,937.50",Revenue,Abbey Distributors,67669,,
Chorley Borough Council,http://statistics.data.gov.uk/id/local-authority/30UE,Unapportionable Central OHeads,1009,Business Development & Growth,Fire Alarms,20072,Fixtures and Fittings,5010,Reactive call outs FIRE,19/12/2018,0132395,451.89,Revenue,ADT Fire & Security,16645,,
Chorley Borough Council,http://statistics.data.gov.uk/id/local-authority/30UE,Unapportionable Central OHeads,1009,Business Development & Growth,Fire Alarms,20072,Fixtures and Fittings,5010,Reactive call outs FIRE,19/12/2018,0132768,285.00,Revenue,ADT Fire & Security,16645,,
Chorley Borough Council,http://statistics.data.gov.uk/id/local-authority/30UE,Unapportionable Central OHeads,1009,Business Development & Growth,Burglar Alarms & Security Systems,20075,Fixtures and Fittings,5010,match off against credit 39988534,05/12/2018,0133720,506.67,Revenue,ADT Fire & Security,16645,,
Chorley Borough Council,http://statistics.data.gov.uk/id/local-authority/30UE,Unapportionable Central OHeads,1009,Business Development & Growth,Burglar Alarms & Security Systems,20075,Fixtures and Fittings,5010,match off against credit 39988535-10,05/12/2018,0133877,526.00,Revenue,ADT Fire & Security,16645,,
Chorley Borough Council,http://statistics.data.gov.uk/id/local-authority/30UE,Unapportionable Central OHeads,1009,Business Development & Growth,Burglar Alarms & Security Systems,20075,Fixtures and Fittings,5010,reactive call outs INTRUDER and ACCESS,05/12/2018,0134230,452.67,Revenue,ADT Fire & Security,16645,,
Chorley Borough Council,http://statistics.data.gov.uk/id/local-authority/30UE,Unapportionable Central OHeads,1009,Business Development & Growth,Burglar Alarms & Security Systems,20075,Fixtures and Fittings,5010,reactive call outs INTRUDER and ACCESS,05/12/2018,0134231,388.00,Revenue,ADT Fire & Security,16645,,
Chorley Borough Council,http://statistics.data.gov.uk/id/local-authority/30UE,Unapportionable Central OHeads,1009,Policy & Governance,Burglar Alarms & Security Systems,20075,Fixtures and Fittings,5010,"Supply, Install & Commission Charge for Access Discs to Bengal Street Offices.",07/12/2018,0134260,510.00,Revenue,ADT Fire & Security,16645,,
Chorley Borough Council,http://statistics.data.gov.uk/id/local-authority/30UE,Unapportionable Central OHeads,1009,Business Development & Growth,Burglar Alarms & Security Systems,20075,Fixtures and Fittings,5010,"Supply, install and commission an extension to an ADT Access Control System - external door",21/12/2018,0134653,"1,486.00",Revenue,ADT Fire & Security,16645,,
Chorley Borough Council,http://statistics.data.gov.uk/id/local-authority/30UE,Service Management & Support,1009,Customer & Digital,Vehicles and Plant Maintenance,30045,Direct Transport Costs,5016,Parts required AE14 AXW Exhaust tailpipe:-1095092-8 @ 131.71 Calliper Seals 12-97519510 @34.95 x2 Suspension Rubber,05/12/2018,0134250,371.54,Revenue,Aebi Schmidt UK Ltd,17287,,
Chorley Borough Council,http://statistics.data.gov.uk/id/local-authority/30UE,Capital,Capital,Business Development & Growth,Architects Fees,03022,Capital Expenditure,Capital,Tenant liaison service from April 2018 to September 2019,05/12/2018,0134263,"1,927.50",Capital,AEW Architects & Designers Ltd,66520,,
Chorley Borough Council,http://statistics.data.gov.uk/id/local-authority/30UE,Unapportionable Central OHeads,1009,Business Development & Growth,Planned Maintenance,20006,Repairs Maintenance & Alts,5005,Ackhurst Lodge Structural Inspection,05/12/2018,0133972,350.00,Revenue,AI Designs Ltd,72578,,
Chorley Borough Council,http://statistics.data.gov.uk/id/local-authority/30UE,Unapportionable Central OHeads,1009,Business Development & Growth,General Repairs - Reactive,20004,Repairs Maintenance & Alts,5005,Astley Hall Chimney stack inspection,05/12/2018,0133973,297.50,Revenue,AI Designs Ltd,72578,,
Chorley Borough Council,http://statistics.data.gov.uk/id/local-authority/30UE,Unapportionable Central OHeads,1009,Customer & Digital,Bank Charges,40151,Miscellaneous Expenses,5034,add ac fee,21/12/2018,0134303,10.37,Revenue,Allpay Net Ltd,17242,,
Chorley Borough Council,http://statistics.data.gov.uk/id/local-authority/30UE,Unapportionable Central OHeads,1009,Customer & Digital,Bank Charges,40151,Miscellaneous Expenses,5034,post office,21/12/2018,0134303,930.89,Revenue,Allpay Net Ltd,17242,,
Chorley Borough Council,http://statistics.data.gov.uk/id/local-authority/30UE,Unapportionable Central OHeads,1009,Customer & Digital,Bank Charges,40151,Miscellaneous Expenses,5034,paypoint,21/12/2018,0134303,541.89,Revenue,Allpay Net Ltd,17242,,
Chorley Borough Council,http://statistics.data.gov.uk/id/local-authority/30UE,Unapportionable Central OHeads,1009,Customer & Digital,Bank Charges,40151,Miscellaneous Expenses,5034,webconnect,21/12/2018,0134303,47.72,Revenue,Allpay Net Ltd,17242,,
Chorley Borough Council,http://statistics.data.gov.uk/id/local-authority/30UE,Democratic Represent and  Mgnt,1007,Business Development & Growth,Rent/Hire Of Premises,20017,Premises Rents,5007,rent Jan to March 2019,19/12/2018,0134664,"10,625.00",Revenue,Alston Properties Ltd,77241,,
Chorley Borough Council,http://statistics.data.gov.uk/id/local-authority/30UE,Democratic Represent and  Mgnt,1007,Business Development & Growth,Rent/Hire Of Premises,20017,Premises Rents,5007,serv charge 2019,19/12/2018,0134664,"4,500.00",Revenue,Alston Properties Ltd,77241,,
Chorley Borough Council,http://statistics.data.gov.uk/id/local-authority/30UE,Democratic Represent and  Mgnt,1007,Business Development & Growth,Rent/Hire Of Premises,20017,Premises Rents,5007,ins 31st oct 18 to 30th Oct 19,19/12/2018,0134664,"1,310.22",Revenue,Alston Properties Ltd,77241,,
Chorley Borough Council,http://statistics.data.gov.uk/id/local-authority/30UE,Unapportionable Central OHeads,1009,Policy & Governance,Cleaning Materials,40019,"Equipment, Furniture & Materia",5023,"BC015-5 Thick Bleach 8 x 5 litres @2.11 per container total",11/12/2018,0134287,16.88,Revenue,Amtoll Ltd,21738,,
Chorley Borough Council,http://statistics.data.gov.uk/id/local-authority/30UE,Unapportionable Central OHeads,1009,Policy & Governance,Cleaning Materials,40019,"Equipment, Furniture & Materia",5023,BD050-5 Pine Gel 4 x 5 litres @3.68 per container total 14.72,11/12/2018,0134287,14.72,Revenue,Amtoll Ltd,21738,,
Chorley Borough Council,http://statistics.data.gov.uk/id/local-authority/30UE,Unapportionable Central OHeads,1009,Policy & Governance,Cleaning Materials,40019,"Equipment, Furniture & Materia",5023,BK102-C1 Foam soap box of 6 QTY 8 boxes @ 15 per box Total 120,11/12/2018,0134287,90.00,Revenue,Amtoll Ltd,21738,,
Chorley Borough Council,http://statistics.data.gov.uk/id/local-authority/30UE,Unapportionable Central OHeads,1009,Policy & Governance,Cleaning Materials,40019,"Equipment, Furniture & Materia",5023,CM007 Heavy duty swing bin liners 20 per pack - QTY 4 packs @ 0.50 per pack Total 2.00,11/12/2018,0134287,12.50,Revenue,Amtoll Ltd,21738,,
Chorley Borough Council,http://statistics.data.gov.uk/id/local-authority/30UE,Unapportionable Central OHeads,1009,Policy & Governance,Cleaning Materials,40019,"Equipment, Furniture & Materia",5023,NC-16006 Henry Vacuum bags 10 per box QTY 3 boxes 3.30 Total 9.90,11/12/2018,0134287,9.90,Revenue,Amtoll Ltd,21738,,
Chorley Borough Council,http://statistics.data.gov.uk/id/local-authority/30UE,Unapportionable Central OHeads,1009,Policy & Governance,Cleaning Materials,40019,"Equipment, Furniture & Materia",5023,MS000003 Neutrodol Vacuum fresh pack of 3 QTY 10 packs @1.50 per pack Total 15.00,11/12/2018,0134287,18.00,Revenue,Amtoll Ltd,21738,,
Chorley Borough Council,http://statistics.data.gov.uk/id/local-authority/30UE,Unapportionable Central OHeads,1009,Policy & Governance,Cleaning Materials,40019,"Equipment, Furniture & Materia",5023,CG121B Blue dish cloths 10 per pack Qty 10 packs @1.16 per pack Total 11.60,11/12/2018,0134287,11.60,Revenue,Amtoll Ltd,21738,,
Chorley Borough Council,http://statistics.data.gov.uk/id/local-authority/30UE,Unapportionable Central OHeads,1009,Policy & Governance,Cleaning Materials,40019,"Equipment, Furniture & Materia",5023,CG121G Green dish cloths 10 per pack QTY 10 packs @ 1.16 per pack Total 11.60,11/12/2018,0134287,11.60,Revenue,Amtoll Ltd,21738,,
Chorley Borough Council,http://statistics.data.gov.uk/id/local-authority/30UE,Unapportionable Central OHeads,1009,Policy & Governance,Cleaning Materials,40019,"Equipment, Furniture & Materia",5023,BA012-75 Spray and wipe multi purpose cleaner with bleach QTY 8 @ 0.90 each Total 7.20,11/12/2018,0134287,7.20,Revenue,Amtoll Ltd,21738,,
Chorley Borough Council,http://statistics.data.gov.uk/id/local-authority/30UE,Unapportionable Central OHeads,1009,Policy & Governance,Cleaning Materials,40019,"Equipment, Furniture & Materia",5023,AM-01828 Check terry tea towels - 10 pack QTY 2 packs @6.66each Total 13.32,11/12/2018,0134287,13.32,Revenue,Amtoll Ltd,21738,,
Chorley Borough Council,http://statistics.data.gov.uk/id/local-authority/30UE,Unapportionable Central OHeads,1009,Policy & Governance,Cleaning Materials,40019,"Equipment, Furniture & Materia",5023,AF113 blue centre feed 2 ply 6 rolls per pack @7.37 per pack QTY 6 packs total 44.22,11/12/2018,0134287,44.22,Revenue,Amtoll Ltd,21738,,
Chorley Borough Council,http://statistics.data.gov.uk/id/local-authority/30UE,Unapportionable Central OHeads,1009,Policy & Governance,Cleaning Materials,40019,"Equipment, Furniture & Materia",5023,BB034-5 Washing up liquid 5Ltr @ 3.30 per 5Ltr QTY 8 x 5Ltr Total 26.40,11/12/2018,0134287,26.40,Revenue,Amtoll Ltd,21738,,
Chorley Borough Council,http://statistics.data.gov.uk/id/local-authority/30UE,Unapportionable Central OHeads,1009,Policy & Governance,Cleaning Materials,40019,"Equipment, Furniture & Materia",5023,CM180 Black bin liners @ 11.75 per box QTY 6 boxes total 70.50,11/12/2018,0134287,70.50,Revenue,Amtoll Ltd,21738,,
Chorley Borough Council,http://statistics.data.gov.uk/id/local-authority/30UE,Unapportionable Central OHeads,1009,Policy & Governance,Cleaning Materials,40019,"Equipment, Furniture & Materia",5023,BC115-E/P/W Gel air fresh x 12 @ 2.93 per pack QTY 2 packs total 5.86,11/12/2018,0134287,1.44,Revenue,Amtoll Ltd,21738,,
Chorley Borough Council,http://statistics.data.gov.uk/id/local-authority/30UE,Unapportionable Central OHeads,1009,Policy & Governance,Cleaning Materials,40019,"Equipment, Furniture & Materia",5023,BG040 Spray Air fresh 400ml @ 0.86 per 400ml QTY 12 x 400ml total 20.64,11/12/2018,0134287,20.64,Revenue,Amtoll Ltd,21738,,
Chorley Borough Council,http://statistics.data.gov.uk/id/local-authority/30UE,Unapportionable Central OHeads,1009,Policy & Governance,Cleaning Materials,40019,"Equipment, Furniture & Materia",5023,BC040-5 Fragranced toilet cleaner 5Ltr @ 3.53 per container total QTY 8 x 5 litres,11/12/2018,0134287,28.24,Revenue,Amtoll Ltd,21738,,
Chorley Borough Council,http://statistics.data.gov.uk/id/local-authority/30UE,Unapportionable Central OHeads,1009,Policy & Governance,Cleaning Materials,40019,"Equipment, Furniture & Materia",5023,BA001-5 Hard Surface Cleaner 5Ltr. @ 2.86 per container QTY 4 x 5ltr total 11.44,11/12/2018,0134287,11.44,Revenue,Amtoll Ltd,21738,,
Chorley Borough Council,http://statistics.data.gov.uk/id/local-authority/30UE,Unapportionable Central OHeads,1009,Policy & Governance,Cleaning Materials,40019,"Equipment, Furniture & Materia",5023,AE233 Paper towels S fold 1 ply @8.10/box QTY 30 boxes total 243.00,11/12/2018,0134287,243.00,Revenue,Amtoll Ltd,21738,,
Chorley Borough Council,http://statistics.data.gov.uk/id/local-authority/30UE,Unapportionable Central OHeads,1009,Policy & Governance,Cleaning Materials,40019,"Equipment, Furniture & Materia",5023,AC003 Small toilet rolls 36 pack @ 6.05/pack QTY 20 packs total 121.00,11/12/2018,0134287,121.00,Revenue,Amtoll Ltd,21738,,
Chorley Borough Council,http://statistics.data.gov.uk/id/local-authority/30UE,Unapportionable Central OHeads,1009,Policy & Governance,Cleaning Materials,40019,"Equipment, Furniture & Materia",5023,AD104 Mini Jumbo 12 pack QTY 30 packs @ 8.91/ pack total 267.30,11/12/2018,0134287,267.30,Revenue,Amtoll Ltd,21738,,
Chorley Borough Council,http://statistics.data.gov.uk/id/local-authority/30UE,Economic Development,1096,Business Development & Growth,Cleaning Materials,40019,"Equipment, Furniture & Materia",5023,Please supply cleaning supplies as per e-mail,11/12/2018,0134383,363.13,Revenue,Amtoll Ltd,21738,,
Chorley Borough Council,http://statistics.data.gov.uk/id/local-authority/30UE,Democratic Represent and  Mgnt,1007,Policy & Governance,Exhibitions & Special Events,40158,Miscellaneous Expenses,5034,NAME REDACTED delivering Father Christmas appearances/duties at Astley Hall for four weekends throughout December 2018.,19/12/2018,0134574,960.00,Revenue,Andrea Price Management,76897,,
Chorley Borough Council,http://statistics.data.gov.uk/id/local-authority/30UE,Unapportionable Central OHeads,1009,Policy & Governance,General Subscriptions,40146,Grants and Subscriptions,5031,Undescribe update work,05/12/2018,0134270,500.00,Revenue,Attain Group Ltd,61771,,
Chorley Borough Council,http://statistics.data.gov.uk/id/local-authority/30UE,Homelessness,1075,Early Intervention,Laundry,40042,"Clothing, Uniforms and Laundry",5025,Weekly linen Service,07/12/2018,0134304,292.72,Revenue,Berendsen UK Ltd,20799,,
Chorley Borough Council,http://statistics.data.gov.uk/id/local-authority/30UE,Service Management & Support,1009,Customer & Digital,Hire Of Vehicles and Plant,30028,Contrct Hire & Operating Lease,5018,match off against credit 231,19/12/2018,0133624,"10,520.00",Revenue,Bunce (Ashbury) Ltd,77672,,
Chorley Borough Council,http://statistics.data.gov.uk/id/local-authority/30UE,Service Management & Support,1009,Customer & Digital,Hire Of Vehicles and Plant,30028,Contrct Hire & Operating Lease,5018,As per agreed (by NAME REDACTED) hire price of 395 per week per machine  Hire of 2 machines totalling 6 weeks  ,19/12/2018,0134240,"6,965.00",Revenue,Bunce (Ashbury) Ltd,77672,,
Chorley Borough Council,http://statistics.data.gov.uk/id/local-authority/30UE,Unapportionable Central OHeads,1009,Customer & Digital,Emergency Call Out System,40096,Communication and Computing,5028,Out of hours standing charge November 2018,11/12/2018,0134289,371.60,Revenue,CallCare Ltd,20257,,
Chorley Borough Council,http://statistics.data.gov.uk/id/local-authority/30UE,Democratic Represent and  Mgnt,1007,Policy & Governance,Member Development Programme,17007,Indirect Employee Expenses,5002,Financial Scrutiny training - Thursday 15 November 2018,19/12/2018,0134406,"1,181.00",Revenue,Centre for Public Scrutiny Ltd (CfPS),76179,,
Chorley Borough Council,http://statistics.data.gov.uk/id/local-authority/30UE,Central Support Services,1009,Early Intervention,Miscellaneous Expenses,40200,Miscellaneous Expenses,5034,Neighbourhood Working,07/12/2018,0134311,"2,600.00",Revenue,Charnock Richard Parish Cncl,16206,,
Chorley Borough Council,http://statistics.data.gov.uk/id/local-authority/30UE,Central Support Services,1009,Customer & Digital,Training Course Fees,17010,Indirect Employee Expenses,5002,Training for NAME REDACTED (Building Control),11/12/2018,0133609,550.00,Revenue,Chartered Association of Building Engineers,77542,,
Chorley Borough Council,http://statistics.data.gov.uk/id/local-authority/30UE,Central Support Services,1009,Chief Executive,Children's Activities,40188,Miscellaneous Expenses,5034,Halloween Party Supplies,18/12/2018,0134598,19.14,Revenue,Chorley BC Petty Cash,16301,,
Chorley Borough Council,http://statistics.data.gov.uk/id/local-authority/30UE,Economic Development,1096,Chief Executive,Miscellaneous Expenses,40200,Miscellaneous Expenses,5034,Woodchats Coffee shop & Masons Caf�,18/12/2018,0134598,10.00,Revenue,Chorley BC Petty Cash,16301,,
Chorley Borough Council,http://statistics.data.gov.uk/id/local-authority/30UE,Central Support Services,1009,Chief Executive,Miscellaneous Expenses,40200,Miscellaneous Expenses,5034,Consultation Items Tea &  Coffee East Street,18/12/2018,0134598,18.05,Revenue,Chorley BC Petty Cash,16301,,
Chorley Borough Council,http://statistics.data.gov.uk/id/local-authority/30UE,Unapportionable Central OHeads,1009,Chief Executive,Refreshments,40036,Catering,5024,Milk,18/12/2018,0134598,2.10,Revenue,Chorley BC Petty Cash,16301,,
Chorley Borough Council,http://statistics.data.gov.uk/id/local-authority/30UE,Unapportionable Central OHeads,1009,Chief Executive,Tools & Equipment - Purchase,40003,"Equipment, Furniture & Materia",5023,Torch,18/12/2018,0134598,4.16,Revenue,Chorley BC Petty Cash,16301,,
Chorley Borough Council,http://statistics.data.gov.uk/id/local-authority/30UE,Democratic Represent and  Mgnt,1007,Chief Executive,Use Of Transport - Mayoral Car,30015,Transport Recharges,5017,Petrol,18/12/2018,0134598,4.17,Revenue,Chorley BC Petty Cash,16301,,
Chorley Borough Council,http://statistics.data.gov.uk/id/local-authority/30UE,Democratic Represent and  Mgnt,1007,Chief Executive,Use Of Transport - Mayoral Car,30015,Transport Recharges,5017,Mayoral Car Wash,18/12/2018,0134598,6.00,Revenue,Chorley BC Petty Cash,16301,,
Chorley Borough Council,http://statistics.data.gov.uk/id/local-authority/30UE,Unapportionable Central OHeads,1009,Chief Executive,Tools & Equipment - Purchase,40003,"Equipment, Furniture & Materia",5023,Getting Keys cut for Bengal Street,18/12/2018,0134598,20.00,Revenue,Chorley BC Petty Cash,16301,,
Chorley Borough Council,http://statistics.data.gov.uk/id/local-authority/30UE,Unapportionable Central OHeads,1009,Chief Executive,Tools & Equipment - Purchase,40003,"Equipment, Furniture & Materia",5023,Hand Held Vacumm cleaner,18/12/2018,0134598,16.00,Revenue,Chorley BC Petty Cash,16301,,
Chorley Borough Council,http://statistics.data.gov.uk/id/local-authority/30UE,Unapportionable Central OHeads,1009,Chief Executive,Tools & Equipment - Purchase,40003,"Equipment, Furniture & Materia",5023,Hand Held Vacuum cleaner,18/12/2018,0134598,16.00,Revenue,Chorley BC Petty Cash,16301,,
Chorley Borough Council,http://statistics.data.gov.uk/id/local-authority/30UE,Democratic Represent and  Mgnt,1007,Chief Executive,Use Of Transport - Mayoral Car,30015,Transport Recharges,5017,Mayoral Car Wash,18/12/2018,0134598,6.00,Revenue,Chorley BC Petty Cash,16301,,
Chorley Borough Council,http://statistics.data.gov.uk/id/local-authority/30UE,Business Support,1095,Chief Executive,Furniture - Purchase,40012,"Equipment, Furniture & Materia",5023,Household Items for Primrose Gardens,18/12/2018,0134598,9.98,Revenue,Chorley BC Petty Cash,16301,,
Chorley Borough Council,http://statistics.data.gov.uk/id/local-authority/30UE,Democratic Represent and  Mgnt,1007,Chief Executive,Uniforms,40039,"Clothing, Uniforms and Laundry",5025,White Shirt for Lancastrian Uniform,18/12/2018,0134598,20.00,Revenue,Chorley BC Petty Cash,16301,,
Chorley Borough Council,http://statistics.data.gov.uk/id/local-authority/30UE,Economic Development,1096,Chief Executive,Miscellaneous Expenses,40200,Miscellaneous Expenses,5034,Postage for CCTV,18/12/2018,0134598,1.89,Revenue,Chorley BC Petty Cash,16301,,
Chorley Borough Council,http://statistics.data.gov.uk/id/local-authority/30UE,Democratic Represent and  Mgnt,1007,Chief Executive,Use Of Transport - Mayoral Car,30015,Transport Recharges,5017,Petrol,18/12/2018,0134598,4.17,Revenue,Chorley BC Petty Cash,16301,,
Chorley Borough Council,http://statistics.data.gov.uk/id/local-authority/30UE,Democratic Represent and  Mgnt,1007,Chief Executive,Tools & Equipment - Purchase,40003,"Equipment, Furniture & Materia",5023,Mayoral Car Wash,18/12/2018,0134598,10.00,Revenue,Chorley BC Petty Cash,16301,,
Chorley Borough Council,http://statistics.data.gov.uk/id/local-authority/30UE,Unapportionable Central OHeads,1009,Chief Executive,Refreshments,40036,Catering,5024,Milk,18/12/2018,0134598,4.44,Revenue,Chorley BC Petty Cash,16301,,
Chorley Borough Council,http://statistics.data.gov.uk/id/local-authority/30UE,Unapportionable Central OHeads,1009,Chief Executive,Refreshments,40036,Catering,5024,Orange Juice,18/12/2018,0134598,7.12,Revenue,Chorley BC Petty Cash,16301,,
Chorley Borough Council,http://statistics.data.gov.uk/id/local-authority/30UE,Unapportionable Central OHeads,1009,Chief Executive,Uniforms,40039,"Clothing, Uniforms and Laundry",5025,Uniform,18/12/2018,0134598,14.00,Revenue,Chorley BC Petty Cash,16301,,
Chorley Borough Council,http://statistics.data.gov.uk/id/local-authority/30UE,Democratic Represent and  Mgnt,1007,Chief Executive,Tools & Equipment - Purchase,40003,"Equipment, Furniture & Materia",5023,Batteries & LED Lights for charity buckets at Bonfire,18/12/2018,0134598,0.83,Revenue,Chorley BC Petty Cash,16301,,
Chorley Borough Council,http://statistics.data.gov.uk/id/local-authority/30UE,Democratic Represent and  Mgnt,1007,Chief Executive,Tools & Equipment - Purchase,40003,"Equipment, Furniture & Materia",5023,Batteries & LED Lights for charity buckets at Bonfire,18/12/2018,0134598,1.67,Revenue,Chorley BC Petty Cash,16301,,
Chorley Borough Council,http://statistics.data.gov.uk/id/local-authority/30UE,Democratic Represent and  Mgnt,1007,Chief Executive,Tools & Equipment - Purchase,40003,"Equipment, Furniture & Materia",5023,Batteries & LED Lights for charity buckets at Bonfire,18/12/2018,0134598,2.83,Revenue,Chorley BC Petty Cash,16301,,
Chorley Borough Council,http://statistics.data.gov.uk/id/local-authority/30UE,Democratic Represent and  Mgnt,1007,Chief Executive,Member Development Programme,17007,Indirect Employee Expenses,5002,Quiche & Potato Chips - Booths,18/12/2018,0134598,1.83,Revenue,Chorley BC Petty Cash,16301,,
Chorley Borough Council,http://statistics.data.gov.uk/id/local-authority/30UE,Democratic Represent and  Mgnt,1007,Chief Executive,Member Development Programme,17007,Indirect Employee Expenses,5002,Quiche & Potato Chips - Booths,18/12/2018,0134598,4.00,Revenue,Chorley BC Petty Cash,16301,,
Chorley Borough Council,http://statistics.data.gov.uk/id/local-authority/30UE,Democratic Represent and  Mgnt,1007,Chief Executive,Exhibitions & Special Events,40158,Miscellaneous Expenses,5034,Wickes ultra gold screws 12mm,18/12/2018,0134598,4.98,Revenue,Chorley BC Petty Cash,16301,,
Chorley Borough Council,http://statistics.data.gov.uk/id/local-authority/30UE,Unapportionable Central OHeads,1009,Chief Executive,Cleaning Materials,40019,"Equipment, Furniture & Materia",5023,Dishwasher Tablets,18/12/2018,0134598,13.98,Revenue,Chorley BC Petty Cash,16301,,
Chorley Borough Council,http://statistics.data.gov.uk/id/local-authority/30UE,Democratic Represent and  Mgnt,1007,Chief Executive,Use Of Transport - Mayoral Car,30015,Transport Recharges,5017,Car Valet,18/12/2018,0134598,5.00,Revenue,Chorley BC Petty Cash,16301,,
Chorley Borough Council,http://statistics.data.gov.uk/id/local-authority/30UE,Unapportionable Central OHeads,1009,Chief Executive,Refreshments,40036,Catering,5024,Cloth Clips (Pound Plus),18/12/2018,0134598,1.50,Revenue,Chorley BC Petty Cash,16301,,
Chorley Borough Council,http://statistics.data.gov.uk/id/local-authority/30UE,Unapportionable Central OHeads,1009,Chief Executive,Refreshments,40036,Catering,5024,Hot chocolate,18/12/2018,0134598,4.00,Revenue,Chorley BC Petty Cash,16301,,
Chorley Borough Council,http://statistics.data.gov.uk/id/local-authority/30UE,Unapportionable Central OHeads,1009,Chief Executive,Mayoral Hospitality,40123,Expenses,5030,Danish Pastries for Mayors at Home event 25/10/18,18/12/2018,0134598,2.20,Revenue,Chorley BC Petty Cash,16301,,
Chorley Borough Council,http://statistics.data.gov.uk/id/local-authority/30UE,Democratic Represent and  Mgnt,1007,Chief Executive,Use Of Transport - Mayoral Car,30015,Transport Recharges,5017,Mayoral Car Wash,18/12/2018,0134598,6.00,Revenue,Chorley BC Petty Cash,16301,,
Chorley Borough Council,http://statistics.data.gov.uk/id/local-authority/30UE,Democratic Represent and  Mgnt,1007,Chief Executive,Member Development Programme,17007,Indirect Employee Expenses,5002,Cakes & Fruit for member development event,18/12/2018,0134598,10.65,Revenue,Chorley BC Petty Cash,16301,,
Chorley Borough Council,http://statistics.data.gov.uk/id/local-authority/30UE,Democratic Represent and  Mgnt,1007,Chief Executive,Member Development Programme,17007,Indirect Employee Expenses,5002,Juice,18/12/2018,0134598,2.67,Revenue,Chorley BC Petty Cash,16301,,
Chorley Borough Council,http://statistics.data.gov.uk/id/local-authority/30UE,Democratic Represent and  Mgnt,1007,Chief Executive,Tools & Equipment - Purchase,40003,"Equipment, Furniture & Materia",5023,Batteries for Key Cupboard,18/12/2018,0134598,4.99,Revenue,Chorley BC Petty Cash,16301,,
Chorley Borough Council,http://statistics.data.gov.uk/id/local-authority/30UE,Democratic Represent and  Mgnt,1007,Chief Executive,Tools & Equipment - Purchase,40003,"Equipment, Furniture & Materia",5023,Keys Cut,18/12/2018,0134598,16.00,Revenue,Chorley BC Petty Cash,16301,,
Chorley Borough Council,http://statistics.data.gov.uk/id/local-authority/30UE,Unapportionable Central OHeads,1009,Chief Executive,Tools & Equipment - Purchase,40003,"Equipment, Furniture & Materia",5023,Dishwasher Tablets,18/12/2018,0134598,7.99,Revenue,Chorley BC Petty Cash,16301,,
Chorley Borough Council,http://statistics.data.gov.uk/id/local-authority/30UE,Unapportionable Central OHeads,1009,Chief Executive,Tools & Equipment - Purchase,40003,"Equipment, Furniture & Materia",5023,Kettle for Union Street,18/12/2018,0134598,12.99,Revenue,Chorley BC Petty Cash,16301,,
Chorley Borough Council,http://statistics.data.gov.uk/id/local-authority/30UE,Unapportionable Central OHeads,1009,Chief Executive,Tools & Equipment - Purchase,40003,"Equipment, Furniture & Materia",5023,Zip Wallets for Mayoral Money,18/12/2018,0134598,5.48,Revenue,Chorley BC Petty Cash,16301,,
Chorley Borough Council,http://statistics.data.gov.uk/id/local-authority/30UE,Central Support Services,1009,Chief Executive,Miscellaneous Expenses,40200,Miscellaneous Expenses,5034,Cooking Materials - Milk,18/12/2018,0134598,1.00,Revenue,Chorley BC Petty Cash,16301,,
Chorley Borough Council,http://statistics.data.gov.uk/id/local-authority/30UE,Central Support Services,1009,Chief Executive,Miscellaneous Expenses,40200,Miscellaneous Expenses,5034,Microwave Container,18/12/2018,0134598,2.50,Revenue,Chorley BC Petty Cash,16301,,
Chorley Borough Council,http://statistics.data.gov.uk/id/local-authority/30UE,Homelessness,1075,Early Intervention,Computer Software-Maintenance,40107,Communication and Computing,5028,"Additional Annual Charge to Chorley for exceeding Data Storage & Recovery quota (LICENCE, SUPPORT AND MAINTENANCE",19/12/2018,0133327,"1,176.23",Revenue,Civica UK Limited,17463,,
Chorley Borough Council,http://statistics.data.gov.uk/id/local-authority/30UE,Homelessness,1075,Early Intervention,Computer Software-Maintenance,40107,Communication and Computing,5028,Additional Charge to Chorley for Exceeding Data Storage & Recovery quota - Overage is billable at 6.00 per File Size (GB),19/12/2018,0133725,284.94,Revenue,Civica UK Limited,17463,,
Chorley Borough Council,http://statistics.data.gov.uk/id/local-authority/30UE,Central Support Services,1009,Customer & Digital,Computer Equipment-Purchase,40098,Communication and Computing,5028,"Installation of Fibre to Covered Market, down existing ducts in Fazakerley Street",11/12/2018,0132775,"1,798.46",Revenue,Core Integrated Solutions,77043,,
Chorley Borough Council,http://statistics.data.gov.uk/id/local-authority/30UE,Central Support Services,1009,Customer & Digital,Computer Equipment-Purchase,40098,Communication and Computing,5028,"Installation of 10 WAPs and associated cabling in and around the covered market, terminated back to existing data cabinet.",11/12/2018,0132776,"2,777.85",Revenue,Core Integrated Solutions,77043,,
Chorley Borough Council,http://statistics.data.gov.uk/id/local-authority/30UE,Central Support Services,1009,Customer & Digital,Computer Equipment-Purchase,40098,Communication and Computing,5028,Civil works to enlarge chamber to 600 x 600mm incl S50 notice,11/12/2018,0133497,"1,521.33",Revenue,Core Integrated Solutions,77043,,
Chorley Borough Council,http://statistics.data.gov.uk/id/local-authority/30UE,Central Support Services,1009,Customer & Digital,Computer Equipment-Purchase,40098,Communication and Computing,5028,Installation of CCTV column on Market Street at junction of Chapel Street. Cabinet column to be installed with 2 x 4 Port PoE,11/12/2018,0133501,"6,947.50",Revenue,Core Integrated Solutions,77043,,
Chorley Borough Council,http://statistics.data.gov.uk/id/local-authority/30UE,Central Support Services,1009,Customer & Digital,Computer Equipment-Purchase,40098,Communication and Computing,5028,"Installation of 10 WAPs and associated cabling in and around the covered market, terminated back to existing data cabinet.",11/12/2018,0133921,650.00,Revenue,Core Integrated Solutions,77043,,
Chorley Borough Council,http://statistics.data.gov.uk/id/local-authority/30UE,Capital,Capital,Customer & Digital,Main Contractor,03007,Capital Expenditure,Capital,Fazakerley St Works 1x footway chamber 1x break in to existing power supply 5x duct in block paving & slab,11/12/2018,0134021,"1,611.11",Capital,Core Integrated Solutions,77043,,
Chorley Borough Council,http://statistics.data.gov.uk/id/local-authority/30UE,Capital,Capital,Customer & Digital,Main Contractor,03007,Capital Expenditure,Capital,Chapel Street Works 1x footway chamber 1x break into existing powersupply 4x duct in block paving & slab,11/12/2018,0134022,"1,505.56",Capital,Core Integrated Solutions,77043,,
Chorley Borough Council,http://statistics.data.gov.uk/id/local-authority/30UE,Capital,Capital,Customer & Digital,Main Contractor,03007,Capital Expenditure,Capital,Cleveland Street Works 1x Demolish existing chamber 2x footway chamber 1x break in to existing power supply 4x duct in block,14/12/2018,0134024,"2,588.89",Capital,Core Integrated Solutions,77043,,
Chorley Borough Council,http://statistics.data.gov.uk/id/local-authority/30UE,Central Support Services,1009,Customer & Digital,Computer Equipment-Purchase,40098,Communication and Computing,5028,Installation of CCTV column on Market Street at junction of Fazakerley Street. Cabinet column to be installed with 2 x 4 Port PoE,11/12/2018,0134050,"6,738.19",Revenue,Core Integrated Solutions,77043,,
Chorley Borough Council,http://statistics.data.gov.uk/id/local-authority/30UE,Unapportionable Central OHeads,1009,Business Development & Growth,General Repairs - Reactive,20004,Repairs Maintenance & Alts,5005,Blanket reactive order,19/12/2018,0133698,761.73,Revenue,Corlett Electrical Eng Co Ltd,16271,,
Chorley Borough Council,http://statistics.data.gov.uk/id/local-authority/30UE,Unapportionable Central OHeads,1009,Business Development & Growth,General Repairs - Reactive,20004,Repairs Maintenance & Alts,5005,Blanket reactive order,14/12/2018,0133946,473.02,Revenue,Corlett Electrical Eng Co Ltd,16271,,
Chorley Borough Council,http://statistics.data.gov.uk/id/local-authority/30UE,Central Support Services,1009,Business Development & Growth,Asset Maintenance Fund,20012,Repairs Maintenance & Alts,5005,ADDRESS REDACTED initial electrical works Tests - 120.00 Remedial works - 352.60,19/12/2018,0134502,472.60,Revenue,Corlett Electrical Eng Co Ltd,16271,,
Chorley Borough Council,http://statistics.data.gov.uk/id/local-authority/30UE,Unapportionable Central OHeads,1009,Business Development & Growth,General Repairs - Reactive,20004,Repairs Maintenance & Alts,5005,Blanket reactive order,21/12/2018,0134514,460.50,Revenue,Corlett Electrical Eng Co Ltd,16271,,
Chorley Borough Council,http://statistics.data.gov.uk/id/local-authority/30UE,Recreation & Sport,1037,Business Development & Growth,Gas,20014,Energy Costs,5006,nov 18 to dec 18,21/12/2018,0134747,332.32,Revenue,Corona Energy Retail 2 Ltd,67249,,
Chorley Borough Council,http://statistics.data.gov.uk/id/local-authority/30UE,Homelessness,1075,Business Development & Growth,Gas,20014,Energy Costs,5006,nov 18 to dec 18,21/12/2018,0134748,845.36,Revenue,Corona Energy Retail 2 Ltd,67249,,
Chorley Borough Council,http://statistics.data.gov.uk/id/local-authority/30UE,Democratic Represent and  Mgnt,1007,Business Development & Growth,Gas,20014,Energy Costs,5006,nov18 to dec18,21/12/2018,0134751,504.15,Revenue,Corona Energy Retail 2 Ltd,67249,,
Chorley Borough Council,http://statistics.data.gov.uk/id/local-authority/30UE,Unapportionable Central OHeads,1009,Business Development & Growth,Gas,20014,Energy Costs,5006,nov18 to dec18,21/12/2018,0134752,639.38,Revenue,Corona Energy Retail 2 Ltd,67249,,
Chorley Borough Council,http://statistics.data.gov.uk/id/local-authority/30UE,Democratic Represent and  Mgnt,1007,Business Development & Growth,Gas,20014,Energy Costs,5006,nov18 to dec18,21/12/2018,0134754,345.42,Revenue,Corona Energy Retail 2 Ltd,67249,,
Chorley Borough Council,http://statistics.data.gov.uk/id/local-authority/30UE,Unapportionable Central OHeads,1009,Business Development & Growth,Gas,20014,Energy Costs,5006,nov18 to dec18,21/12/2018,0134755,916.56,Revenue,Corona Energy Retail 2 Ltd,67249,,
Chorley Borough Council,http://statistics.data.gov.uk/id/local-authority/30UE,Unapportionable Central OHeads,1009,Business Development & Growth,Gas,20014,Energy Costs,5006,nov18 to dec18,21/12/2018,0134756,977.90,Revenue,Corona Energy Retail 2 Ltd,67249,,
Chorley Borough Council,http://statistics.data.gov.uk/id/local-authority/30UE,Unapportionable Central OHeads,1009,Policy & Governance,HR Approved Training Expenses,17001,Indirect Employee Expenses,5002,Coaching for NAME REDACTED on 7/11/18,14/12/2018,0134463,250.00,Revenue,Create Edge Ltd,77142,,
Chorley Borough Council,http://statistics.data.gov.uk/id/local-authority/30UE,Business Support,1095,Business Development & Growth,Tools & Equipment - Purchase,40003,"Equipment, Furniture & Materia",5023,"01 Hytera RD625 1-25W UHF repeater including built-in duplexer, power supply, wall mounting bracket, configuration and on-site ",19/12/2018,0134286,"1,894.00",Revenue,DCS 2 Way Radio Ltd,77666,,
Chorley Borough Council,http://statistics.data.gov.uk/id/local-authority/30UE,Service Management & Support,1009,Customer & Digital,Grounds Maintenance Contractor,20043,Grounds Maintenance Costs,5013,"Ground works and haulage works carried out at Lodge Bank, Brinscall. Part of the Reservoir recommendations",05/12/2018,0134252,750.00,Revenue,Derek R Smith,21092,,
Chorley Borough Council,http://statistics.data.gov.uk/id/local-authority/30UE,Democratic Represent and  Mgnt,1007,Chief Executive,General Subscriptions,40146,Grants and Subscriptions,5031,Annual Membership for District Councils Network,19/12/2018,0134662,500.00,Revenue,District Councils Network,58156,,
Chorley Borough Council,http://statistics.data.gov.uk/id/local-authority/30UE,Democratic Represent and  Mgnt,1007,Customer & Digital,Supplies-Grounds Maintenance,40025,"Equipment, Furniture & Materia",5023,5 Willow figures (Band of Brothers) 1 Willow poppy,05/12/2018,0133874,"3,500.00",Revenue,Eco-Arts,21984,,
Chorley Borough Council,http://statistics.data.gov.uk/id/local-authority/30UE,Capital,Capital,Business Development & Growth,Other Contractor,03012,Capital Expenditure,Capital,To supply & fit parapet rail for cyclists on Park Road as per quote 39.00/m x 91m = 3549.,05/12/2018,0134155,"3,549.00",Capital,Edwards Wrought Iron Ltd,77654,,
Chorley Borough Council,http://statistics.data.gov.uk/id/local-authority/30UE,Capital,Capital,Business Development & Growth,Other Contractor,03012,Capital Expenditure,Capital,"Please supply x1 no swing barrier with hinge as per drawing provided , in a galvanised finish, powder coated",05/12/2018,0134156,975.00,Capital,Edwards Wrought Iron Ltd,77654,,
Chorley Borough Council,http://statistics.data.gov.uk/id/local-authority/30UE,Central Support Services,1009,Customer & Digital,Mobile Voice and Data,40086,Communication and Computing,5028,,19/12/2018,0134597,"1,700.82",Revenue,EE - Orange,16486,,
Chorley Borough Council,http://statistics.data.gov.uk/id/local-authority/30UE,Central Support Services,1009,Customer & Digital,Mobile Voice and Data,40086,Communication and Computing,5028,1484.01,21/12/2018,0134488,"1,484.01",Revenue,EE LIMITED,63366,,
Chorley Borough Council,http://statistics.data.gov.uk/id/local-authority/30UE,Unapportionable Central OHeads,1009,Business Development & Growth,Planned Maintenance,20006,Repairs Maintenance & Alts,5005,Blanket order for PPM works,21/12/2018,0134495,"1,994.00",Revenue,Ellesmere Engineering Co Ltd,17520,,
Chorley Borough Council,http://statistics.data.gov.uk/id/local-authority/30UE,Unapportionable Central OHeads,1009,Business Development & Growth,Asset Maintenance Fund,20012,Repairs Maintenance & Alts,5005,Service and remedial works to Property - the other purchase order ran out due to additional works needed,21/12/2018,0134496,432.19,Revenue,Ellesmere Engineering Co Ltd,17520,,
Chorley Borough Council,http://statistics.data.gov.uk/id/local-authority/30UE,Unapportionable Central OHeads,1009,Business Development & Growth,Planned Maintenance,20006,Repairs Maintenance & Alts,5005,Blanket order for PPM works,21/12/2018,0134497,462.63,Revenue,Ellesmere Engineering Co Ltd,17520,,
Chorley Borough Council,http://statistics.data.gov.uk/id/local-authority/30UE,Unapportionable Central OHeads,1009,Business Development & Growth,Planned Maintenance,20006,Repairs Maintenance & Alts,5005,Blanket order for PPM works,21/12/2018,0134517,309.00,Revenue,Ellesmere Engineering Co Ltd,17520,,
Chorley Borough Council,http://statistics.data.gov.uk/id/local-authority/30UE,Business Support,1095,Business Development & Growth,Miscellaneous Expenses,40200,Miscellaneous Expenses,5034,Gas meter installation EAL2018/6962,14/12/2018,0134176,"1,409.40",Revenue,Energy Assets Ltd,77692,,
Chorley Borough Council,http://statistics.data.gov.uk/id/local-authority/30UE,Capital,Capital,Business Development & Growth,Main Contractor,03007,Capital Expenditure,Capital,Call off 9 � Pre-Construction Service Fees,19/12/2018,0134479,"4,837.88",Capital,Eric Wright Construction Ltd,76464,,
Chorley Borough Council,http://statistics.data.gov.uk/id/local-authority/30UE,Capital,Capital,Business Development & Growth,Main Contractor,03007,Capital Expenditure,Capital,"Friday Street � Resurfacing, drainage improvements & erection of a decked car park as detailed in EWC cost plan",19/12/2018,0134519,"151,311.75",Capital,Eric Wright Construction Ltd,76464,,
Chorley Borough Council,http://statistics.data.gov.uk/id/local-authority/30UE,Capital,Capital,Business Development & Growth,Main Contractor,03007,Capital Expenditure,Capital,Primrose gardens Valuation Statements,19/12/2018,0134594,"66,700.20",Capital,Eric Wright Construction Ltd,76464,,
Chorley Borough Council,http://statistics.data.gov.uk/id/local-authority/30UE,Capital,Capital,Business Development & Growth,Main Contractor,03007,Capital Expenditure,Capital,zero,19/12/2018,0134594,"539,665.24",Capital,Eric Wright Construction Ltd,76464,,
Chorley Borough Council,http://statistics.data.gov.uk/id/local-authority/30UE,Service Management & Support,1009,Customer & Digital,Hire of Plant,40001,"Equipment, Furniture & Materia",5023,Hire of a leaf sucker,05/12/2018,0134217,640.00,Revenue,F R Sharrock Ltd,18091,,
Chorley Borough Council,http://statistics.data.gov.uk/id/local-authority/30UE,Service Management & Support,1009,Customer & Digital,Supplies-Grounds Maintenance,40025,"Equipment, Furniture & Materia",5023,as per pro-forma invoice 133406 for parts received,19/12/2018,0134481,299.20,Revenue,F R Sharrock Ltd,18091,,
Chorley Borough Council,http://statistics.data.gov.uk/id/local-authority/30UE,Democratic Represent and  Mgnt,1007,Policy & Governance,Grants To Other Organisations,40127,Grants and Subscriptions,5031,Councillor Community Grant 2018/19,19/12/2018,0134665,592.00,Revenue,Friends of Astley Park,75431,,
Chorley Borough Council,http://statistics.data.gov.uk/id/local-authority/30UE,Democratic Represent and  Mgnt,1007,Policy & Governance,Grants To Other Organisations,40127,Grants and Subscriptions,5031,Councillor Community Grant 2018/19,14/12/2018,0134349,250.00,Revenue,Friends of Coppull Library,77713,,
Chorley Borough Council,http://statistics.data.gov.uk/id/local-authority/30UE,Capital,Capital,Business Development & Growth,Equipment,03014,Capital Expenditure,Capital,Chlorinator kit x 2 for All Seasons,05/12/2018,0134025,"6,000.00",Capital,Gaffey Technical Services Ltd,18844,,
Chorley Borough Council,http://statistics.data.gov.uk/id/local-authority/30UE,Central Support Services,1009,Customer & Digital,Professional Fees,14011,Direct Employee Expenses,5001,Impact assessment on the loss of a listed building (Holt Farm),11/12/2018,0134379,875.00,Revenue,Garry Miller,77642,,
Chorley Borough Council,http://statistics.data.gov.uk/id/local-authority/30UE,Business Support,1095,Business Development & Growth,Gas,20014,Energy Costs,5006,ADDRESS REDACTED,19/12/2018,0134566,386.10,Revenue,Gazprom Energy,56502,,
Chorley Borough Council,http://statistics.data.gov.uk/id/local-authority/30UE,Unapportionable Central OHeads,1009,Business Development & Growth,General Repairs - Reactive,20004,Repairs Maintenance & Alts,5005,Reactive repairs to auto doors - all sites,05/12/2018,0133780,"1,290.40",Revenue,Geze UK Ltd,18836,,
Chorley Borough Council,http://statistics.data.gov.uk/id/local-authority/30UE,Service Management & Support,1009,Customer & Digital,Vehicles and Plant Maintenance,30045,Direct Transport Costs,5016,as per pro-forma 203088 replace tractor seat,19/12/2018,0134483,471.10,Revenue,Gibsons Garden Machinery Ltd,17550,,
Chorley Borough Council,http://statistics.data.gov.uk/id/local-authority/30UE,Service Management & Support,1009,Customer & Digital,Vehicles and Plant Maintenance,30045,Direct Transport Costs,5016,as per pro-forma 203088,19/12/2018,0134483,11.78,Revenue,Gibsons Garden Machinery Ltd,17550,,
Chorley Borough Council,http://statistics.data.gov.uk/id/local-authority/30UE,Central Support Services,1009,Early Intervention,Impounded Dogs Costs,40207,Miscellaneous Expenses,5034,Kennel Fees 2018/19,11/12/2018,0134262,"2,033.00",Revenue,Glencoe Boarding Kennels,16734,,
Chorley Borough Council,http://statistics.data.gov.uk/id/local-authority/30UE,Central Support Services,1009,Early Intervention,Vandalism Repairs,20005,Repairs Maintenance & Alts,5005,Contract for Graffiti removal 2017,11/12/2018,0134265,340.00,Revenue,Graffiti Away,76316,,
Chorley Borough Council,http://statistics.data.gov.uk/id/local-authority/30UE,Corporate Management,1008,Policy & Governance,External Audit,40064,Services,5027,2018/19 Main Audit Fee,14/12/2018,0134459,"8,711.50",Revenue,Grant Thornton UK LLP,57322,,
Chorley Borough Council,http://statistics.data.gov.uk/id/local-authority/30UE,Capital,Capital,Business Development & Growth,Main Contractor,03007,Capital Expenditure,Capital,Supply and Installation of an Inclusive Toddler Play Area to Coronation Recreation Ground as outlined in tender documentation ,11/12/2018,0134400,"87,944.67",Capital,Hags Smp LTD,22492,,
Chorley Borough Council,http://statistics.data.gov.uk/id/local-authority/30UE,Capital,Capital,Business Development & Growth,Main Contractor,03007,Capital Expenditure,Capital,"Design and Build of a MUGA, Fitness zone and Play Area for 8+ at Coronation Rec Ground, Chorley. As per drawing specification",19/12/2018,0134411,"74,294.91",Capital,Hags Smp LTD,22492,,
Chorley Borough Council,http://statistics.data.gov.uk/id/local-authority/30UE,Capital,Capital,Business Development & Growth,Main Contractor,03007,Capital Expenditure,Capital,Supply and Installation of an Inclusive Toddler Play Area to Coronation Recreation Ground as outlined in tender documentation,19/12/2018,0134418,"57,555.33",Capital,Hags Smp LTD,22492,,
Chorley Borough Council,http://statistics.data.gov.uk/id/local-authority/30UE,Unapportionable Central OHeads,1009,Policy & Governance,Exhibitions & Special Events,40158,Miscellaneous Expenses,5034,Fuel for Ice Rink,05/12/2018,0134259,"1,532.69",Revenue,Harrison Oils Ltd,76429,,
Chorley Borough Council,http://statistics.data.gov.uk/id/local-authority/30UE,Unapportionable Central OHeads,1009,Policy & Governance,Exhibitions & Special Events,40158,Miscellaneous Expenses,5034,Fuel for Ice Rink,11/12/2018,0134381,651.98,Revenue,Harrison Oils Ltd,76429,,
Chorley Borough Council,http://statistics.data.gov.uk/id/local-authority/30UE,Unapportionable Central OHeads,1009,Policy & Governance,Exhibitions & Special Events,40158,Miscellaneous Expenses,5034,Fuel for Ice Rink,11/12/2018,0134414,"1,254.54",Revenue,Harrison Oils Ltd,76429,,
Chorley Borough Council,http://statistics.data.gov.uk/id/local-authority/30UE,Unapportionable Central OHeads,1009,Policy & Governance,Exhibitions & Special Events,40158,Miscellaneous Expenses,5034,Fuel for Ice Rink,14/12/2018,0134485,534.57,Revenue,Harrison Oils Ltd,76429,,
Chorley Borough Council,http://statistics.data.gov.uk/id/local-authority/30UE,Unapportionable Central OHeads,1009,Policy & Governance,Exhibitions & Special Events,40158,Miscellaneous Expenses,5034,Fuel for Ice Rink,21/12/2018,0134642,938.12,Revenue,Harrison Oils Ltd,76429,,
Chorley Borough Council,http://statistics.data.gov.uk/id/local-authority/30UE,Homelessness,1075,Early Intervention,Furniture - Purchase,40012,"Equipment, Furniture & Materia",5023,Furniture for Primrose Gardens Show Apartment,19/12/2018,0134559,"1,870.82",Revenue,Herbert Dickinson (furniture and Music)  LTD,21931,,
Chorley Borough Council,http://statistics.data.gov.uk/id/local-authority/30UE,Central Support Services,1009,Business Development & Growth,Professional Fees,40063,Services,5027,Alker Lane project works,05/12/2018,0134086,"1,417.50",Revenue,Hive Land & Planning Limited,77330,,
Chorley Borough Council,http://statistics.data.gov.uk/id/local-authority/30UE,Central Support Services,1009,Business Development & Growth,Professional Fees,40063,Services,5027,Shady Lane project works,05/12/2018,0134087,"2,843.75",Revenue,Hive Land & Planning Limited,77330,,
Chorley Borough Council,http://statistics.data.gov.uk/id/local-authority/30UE,Central Support Services,1009,Business Development & Growth,Professional Fees,40063,Services,5027,Additional spend on Alker Lane project management,21/12/2018,0134644,445.50,Revenue,Hive Land & Planning Limited,77330,,
Chorley Borough Council,http://statistics.data.gov.uk/id/local-authority/30UE,Central Support Services,1009,Business Development & Growth,Professional Fees,40063,Services,5027,Shady Lane project works,21/12/2018,0134651,809.36,Revenue,Hive Land & Planning Limited,77330,,
Chorley Borough Council,http://statistics.data.gov.uk/id/local-authority/30UE,Central Support Services,1009,Customer & Digital,Computer Software-Additional,40102,Communication and Computing,5028,"Oracle 12 Upgrade to Live and Test package (Weekdays Mon-Fri) #Note �  �	CBC supply their own Oracle Licences and should",05/12/2018,0134186,"3,425.00",Revenue,IDOX Software Limited,17542,,
Chorley Borough Council,http://statistics.data.gov.uk/id/local-authority/30UE,Unapportionable Central OHeads,1009,Policy & Governance,HR Recruitment - Advertising,15300,Indirect Employee Expenses,5002,Advertising on Indeed.com for November 2018,21/12/2018,0134579,"1,423.38",Revenue,Indeed Ireland Operations Ltd,77703,,
Chorley Borough Council,http://statistics.data.gov.uk/id/local-authority/30UE,Unapportionable Central OHeads,1009,Customer & Digital,Professional Fees,40063,Services,5027,Analyse LOCAL - one-off RV finder (26 assessments),19/12/2018,0134561,500.00,Revenue,Inform CPI Ltd,77179,,
Chorley Borough Council,http://statistics.data.gov.uk/id/local-authority/30UE,Unapportionable Central OHeads,1009,Customer & Digital,Professional Fees,40063,Services,5027,NAME & ADDRESS REDACTED,19/12/2018,0134591,425.00,Revenue,Inform CPI Ltd,77179,,
Chorley Borough Council,http://statistics.data.gov.uk/id/local-authority/30UE,Corporate Management,1008,Customer & Digital,Training Allowance,14005,Direct Employee Expenses,5001,Caravan site licensing training 06.02.2019 for NAMES REDACTED,11/12/2018,0134206,320.00,Revenue,Institute Of Licensing,16987,,
Chorley Borough Council,http://statistics.data.gov.uk/id/local-authority/30UE,Community Development,1097,Business Development & Growth,Rent/Hire Of Premises,20017,Premises Rents,5007,Annual Rent of 35-39 Market st,21/12/2018,0134437,"7,218.75",Revenue,J R Keys,17124,,
Chorley Borough Council,http://statistics.data.gov.uk/id/local-authority/30UE,Business Support,1095,Business Development & Growth,Refuse Collection,20037,Cleaning and Domestic Supplies,5012,Waste Compactor Rental Services @ 270.0 per month for 01 April 2018 - 31 March 2019,05/12/2018,0134255,270.00,Revenue,J&H Rentals Limited,70699,,
Chorley Borough Council,http://statistics.data.gov.uk/id/local-authority/30UE,Unapportionable Central OHeads,1009,Business Development & Growth,Planned Maintenance,20006,Repairs Maintenance & Alts,5005,Blanket PPM order from June 2017,19/12/2018,0134298,268.50,Revenue,James Mercer,20194,,
Chorley Borough Council,http://statistics.data.gov.uk/id/local-authority/30UE,Service Management & Support,1009,Customer & Digital,Supplies-Grounds Maintenance,40025,"Equipment, Furniture & Materia",5023,1 pallet of multi purpose compost (60 bags),14/12/2018,0134345,280.80,Revenue,John H Mayor & Sons Ltd,16635,,
Chorley Borough Council,http://statistics.data.gov.uk/id/local-authority/30UE,Central Support Services,1009,Customer & Digital,Miscellaneous Expenses,40200,Miscellaneous Expenses,5034,24 x 6`` x 3`` wooden posts 34 x 3.6m rails,14/12/2018,0134346,302.50,Revenue,John H Mayor & Sons Ltd,16635,,
Chorley Borough Council,http://statistics.data.gov.uk/id/local-authority/30UE,Central Support Services,1009,Business Development & Growth,Professional Fees,40063,Services,5027,Cowling Consultation exercise as per discussion with NAME REDACTED on 11/10/18,21/12/2018,0134645,283.00,Revenue,JPI Media - Johnston Publishing Ltd,20072,,
Chorley Borough Council,http://statistics.data.gov.uk/id/local-authority/30UE,Service Management & Support,1009,Customer & Digital,Protective Clothing,40040,"Clothing, Uniforms and Laundry",5025,"100 x Portwest A185 duo-therm glove Winter Grab n Grip glove, 7-gauge lining, approved EN388 2.2.4.3 excellent wet & dry grip",05/12/2018,0134165,120.00,Revenue,Key Engineering & Hygene Supplies,51615,,
Chorley Borough Council,http://statistics.data.gov.uk/id/local-authority/30UE,Service Management & Support,1009,Customer & Digital,Protective Clothing,40040,"Clothing, Uniforms and Laundry",5025,"Rodo Guardian  Bump Boot  high leg safety boot (7-9) eyelets, water resistant leather upper, sports padded collar and tongue",05/12/2018,0134165,136.15,Revenue,Key Engineering & Hygene Supplies,51615,,
Chorley Borough Council,http://statistics.data.gov.uk/id/local-authority/30UE,Control Accounts,Control,Policy & Governance,General Balances,00100,Balance Sheet,Balance,monthly deds exp,19/12/2018,0134700,"1,243.30",Revenue,Labour Councillors Association,17577,,
Chorley Borough Council,http://statistics.data.gov.uk/id/local-authority/30UE,Capital,Capital,Early Intervention,Grants,03002,Capital Expenditure,Capital,NAME REDACTED,07/12/2018,0134312,"2,127.44",Capital,Lancashire County Council,17758,,
Chorley Borough Council,http://statistics.data.gov.uk/id/local-authority/30UE,Capital,Capital,Early Intervention,Grants,03002,Capital Expenditure,Capital,ADDRESS REDACTED,07/12/2018,0134326,"6,407.00",Capital,Lancashire County Council,17758,,
Chorley Borough Council,http://statistics.data.gov.uk/id/local-authority/30UE,Central Support Services,1009,Customer & Digital,Network Line Rental,40248,Communication and Computing,5028,ICT Services SLA for 3 months to start from 1st January 2019  to 31st March 2019,21/12/2018,0134647,"3,936.56",Revenue,Lancashire County Council,17758,,
Chorley Borough Council,http://statistics.data.gov.uk/id/local-authority/30UE,Capital,Capital,Business Development & Growth,Main Contractor,03007,Capital Expenditure,Capital,cancelled by credit 1213 in full,14/12/2018,0133634,"18,409.00",Capital,Landscape Engineering Ltd,54727,,
Chorley Borough Council,http://statistics.data.gov.uk/id/local-authority/30UE,Capital,Capital,Business Development & Growth,Main Contractor,03007,Capital Expenditure,Capital,"Coronation Rec Play Area - Extra drainage for adjacent existing multiplay unit including soakaway 1177.50 Grab wagon to remove",19/12/2018,0134677,"2,427.50",Capital,Landscape Engineering Ltd,54727,,
Chorley Borough Council,http://statistics.data.gov.uk/id/local-authority/30UE,Unapportionable Central OHeads,1009,Policy & Governance,Car Leasing Payment,14100,Direct Employee Expenses,5001,Hire car,14/12/2018,0134401,390.60,Revenue,Lex Autolease Ltd,70682,,
Chorley Borough Council,http://statistics.data.gov.uk/id/local-authority/30UE,Service Management & Support,1009,Customer & Digital,Supplies-Grounds Maintenance,40025,"Equipment, Furniture & Materia",5023,compost was paid to the wrong ac in error Alty`s paid it back,19/12/2018,0134433,340.00,Revenue,LS Systems Limited,77711,,
Chorley Borough Council,http://statistics.data.gov.uk/id/local-authority/30UE,Unapportionable Central OHeads,1009,Chief Executive,Stationery,40050,"Printing, Stationery & General",5026,Lyreco Heavy Duty Sticky Tape Dispenser For 19Mm X 33/66M Tapes (Not Included),11/12/2018,0134271,17.55,Revenue,Lyreco UK Ltd,17623,,
Chorley Borough Council,http://statistics.data.gov.uk/id/local-authority/30UE,Democratic Represent and  Mgnt,1007,Chief Executive,Stationery,40050,"Printing, Stationery & General",5026,HP Black Ink Cartridge 953,11/12/2018,0134271,21.90,Revenue,Lyreco UK Ltd,17623,,
Chorley Borough Council,http://statistics.data.gov.uk/id/local-authority/30UE,Democratic Represent and  Mgnt,1007,Chief Executive,Stationery,40050,"Printing, Stationery & General",5026,CEP Wall Rack in black,11/12/2018,0134271,30.00,Revenue,Lyreco UK Ltd,17623,,
Chorley Borough Council,http://statistics.data.gov.uk/id/local-authority/30UE,Democratic Represent and  Mgnt,1007,Chief Executive,Stationery,40050,"Printing, Stationery & General",5026,Year Planner,11/12/2018,0134271,1.67,Revenue,Lyreco UK Ltd,17623,,
Chorley Borough Council,http://statistics.data.gov.uk/id/local-authority/30UE,Unapportionable Central OHeads,1009,Chief Executive,Stationery,40050,"Printing, Stationery & General",5026,ELBA M56268720 MYLAR INDEX REINF 1-20 A4,11/12/2018,0134271,17.16,Revenue,Lyreco UK Ltd,17623,,
Chorley Borough Council,http://statistics.data.gov.uk/id/local-authority/30UE,Unapportionable Central OHeads,1009,Chief Executive,Stationery,40050,"Printing, Stationery & General",5026,ELBA M56768720 MYLAR INDEX REINF 1-10 A4,11/12/2018,0134271,9.45,Revenue,Lyreco UK Ltd,17623,,
Chorley Borough Council,http://statistics.data.gov.uk/id/local-authority/30UE,Unapportionable Central OHeads,1009,Chief Executive,Stationery,40050,"Printing, Stationery & General",5026,Lyreco White Storage Boxes 250 X 327 X 415Mm - Box Of 10,11/12/2018,0134271,17.47,Revenue,Lyreco UK Ltd,17623,,
Chorley Borough Council,http://statistics.data.gov.uk/id/local-authority/30UE,Unapportionable Central OHeads,1009,Chief Executive,Stationery,40050,"Printing, Stationery & General",5026,C5 white envelope,11/12/2018,0134271,6.44,Revenue,Lyreco UK Ltd,17623,,
Chorley Borough Council,http://statistics.data.gov.uk/id/local-authority/30UE,Unapportionable Central OHeads,1009,Chief Executive,Stationery,40050,"Printing, Stationery & General",5026,LYRECO BUDGET WHITE 8 X 5INCH SHORTHAND NOTEBOOKS (RULED) - PACK OF 20(X80 SHTS),11/12/2018,0134271,4.00,Revenue,Lyreco UK Ltd,17623,,
Chorley Borough Council,http://statistics.data.gov.uk/id/local-authority/30UE,Unapportionable Central OHeads,1009,Chief Executive,Stationery,40050,"Printing, Stationery & General",5026,Lyreco  Hard Back Twin Wire Notebook A5 - Pack Of 5,11/12/2018,0134271,7.10,Revenue,Lyreco UK Ltd,17623,,
Chorley Borough Council,http://statistics.data.gov.uk/id/local-authority/30UE,Unapportionable Central OHeads,1009,Chief Executive,Stationery,40050,"Printing, Stationery & General",5026,"3.110.545 LYRECO HARD BACK TWIN WIRE NOTEBK A4 	 - PACK OF 5",11/12/2018,0134271,9.20,Revenue,Lyreco UK Ltd,17623,,
Chorley Borough Council,http://statistics.data.gov.uk/id/local-authority/30UE,Unapportionable Central OHeads,1009,Chief Executive,Stationery,40050,"Printing, Stationery & General",5026,LYRECO RETRACTABLE GEL INK BLACK PENS 0.5MM LINE WIDTH - BOX OF 12,11/12/2018,0134271,5.28,Revenue,Lyreco UK Ltd,17623,,
Chorley Borough Council,http://statistics.data.gov.uk/id/local-authority/30UE,Unapportionable Central OHeads,1009,Chief Executive,Stationery,40050,"Printing, Stationery & General",5026,Impega Assorted Colour Extra Wide A4 10-Part Index Subject Dividers,11/12/2018,0134271,1.96,Revenue,Lyreco UK Ltd,17623,,
Chorley Borough Council,http://statistics.data.gov.uk/id/local-authority/30UE,Unapportionable Central OHeads,1009,Chief Executive,Stationery,40050,"Printing, Stationery & General",5026,"3.110.545 LYRECO HARD BACK TWIN WIRE NOTEBK A4 	 - PACK OF 5",11/12/2018,0134271,9.20,Revenue,Lyreco UK Ltd,17623,,
Chorley Borough Council,http://statistics.data.gov.uk/id/local-authority/30UE,Unapportionable Central OHeads,1009,Chief Executive,Stationery,40050,"Printing, Stationery & General",5026,96Lyreco Plain Yellow Sticky Notes 50 X 40Mm - Pack Of 12 Pads,11/12/2018,0134271,3.96,Revenue,Lyreco UK Ltd,17623,,
Chorley Borough Council,http://statistics.data.gov.uk/id/local-authority/30UE,Unapportionable Central OHeads,1009,Chief Executive,Stationery,40050,"Printing, Stationery & General",5026,"3.110.545 LYRECO HARD BACK TWIN WIRE NOTEBK A4 	 - PACK OF 5",11/12/2018,0134271,9.20,Revenue,Lyreco UK Ltd,17623,,
Chorley Borough Council,http://statistics.data.gov.uk/id/local-authority/30UE,Unapportionable Central OHeads,1009,Chief Executive,Stationery,40050,"Printing, Stationery & General",5026,Lyreco Bullet Tip Assorted Colour Whiteboard Markers - Wallet Of 4,11/12/2018,0134271,0.74,Revenue,Lyreco UK Ltd,17623,,
Chorley Borough Council,http://statistics.data.gov.uk/id/local-authority/30UE,Unapportionable Central OHeads,1009,Chief Executive,Stationery,40050,"Printing, Stationery & General",5026,Verbatim CD 700mb/80 mins pack of 100,11/12/2018,0134271,18.76,Revenue,Lyreco UK Ltd,17623,,
Chorley Borough Council,http://statistics.data.gov.uk/id/local-authority/30UE,Unapportionable Central OHeads,1009,Chief Executive,Stationery,40050,"Printing, Stationery & General",5026,box 25 DVD printable,11/12/2018,0134271,17.16,Revenue,Lyreco UK Ltd,17623,,
Chorley Borough Council,http://statistics.data.gov.uk/id/local-authority/30UE,Unapportionable Central OHeads,1009,Chief Executive,Stationery,40050,"Printing, Stationery & General",5026,2.182.763 PK25 FELLOWES  CD SLIM CASES BLACK,11/12/2018,0134271,2.70,Revenue,Lyreco UK Ltd,17623,,
Chorley Borough Council,http://statistics.data.gov.uk/id/local-authority/30UE,Unapportionable Central OHeads,1009,Chief Executive,Stationery,40050,"Printing, Stationery & General",5026,LYRECO WHITE C5 SELF SEAL WINDOW ENVELOPES 90GSM - BOX OF 500,11/12/2018,0134271,32.08,Revenue,Lyreco UK Ltd,17623,,
Chorley Borough Council,http://statistics.data.gov.uk/id/local-authority/30UE,Unapportionable Central OHeads,1009,Chief Executive,Stationery,40050,"Printing, Stationery & General",5026,CASIO DH-12TER DESKTOP CALC 12 DIGIT,11/12/2018,0134271,14.69,Revenue,Lyreco UK Ltd,17623,,
Chorley Borough Council,http://statistics.data.gov.uk/id/local-authority/30UE,Unapportionable Central OHeads,1009,Chief Executive,Stationery,40050,"Printing, Stationery & General",5026,Lyreco Sellotape,11/12/2018,0134271,6.00,Revenue,Lyreco UK Ltd,17623,,
Chorley Borough Council,http://statistics.data.gov.uk/id/local-authority/30UE,Unapportionable Central OHeads,1009,Chief Executive,Stationery,40050,"Printing, Stationery & General",5026,LYRECO WEEK/VIEW DIARY A5 BLACK,11/12/2018,0134271,2.86,Revenue,Lyreco UK Ltd,17623,,
Chorley Borough Council,http://statistics.data.gov.uk/id/local-authority/30UE,Unapportionable Central OHeads,1009,Policy & Governance,Computer Consumables,40099,Communication and Computing,5028,Black Toner Cartridge for Lexmark T650 printer,11/12/2018,0134274,515.13,Revenue,Lyreco UK Ltd,17623,,
Chorley Borough Council,http://statistics.data.gov.uk/id/local-authority/30UE,Unapportionable Central OHeads,1009,Policy & Governance,Computer Consumables,40099,Communication and Computing,5028,HP 337 black ink cartridge,11/12/2018,0134274,60.87,Revenue,Lyreco UK Ltd,17623,,
Chorley Borough Council,http://statistics.data.gov.uk/id/local-authority/30UE,Service Management & Support,1009,Customer & Digital,Grounds Maintenance Contractor,20043,Grounds Maintenance Costs,5013,Tree works for October invoice 37,11/12/2018,0134351,"2,215.00",Revenue,M J Walker,62044,,
Chorley Borough Council,http://statistics.data.gov.uk/id/local-authority/30UE,Capital,Capital,Early Intervention,Grants,03002,Capital Expenditure,Capital,ADDRESS REDACTED,07/12/2018,0134268,"4,540.00",Capital,M.J Park Building Contractors,20367,,
Chorley Borough Council,http://statistics.data.gov.uk/id/local-authority/30UE,Capital,Capital,Early Intervention,Grants,03002,Capital Expenditure,Capital,ADDRESS REDACTED,19/12/2018,0134565,"3,790.00",Capital,M.J Park Building Contractors,20367,,
Chorley Borough Council,http://statistics.data.gov.uk/id/local-authority/30UE,Capital,Capital,Early Intervention,Grants,03002,Capital Expenditure,Capital,ADDRESS REDACTED,19/12/2018,0134661,"2,960.00",Capital,M.J Park Building Contractors,20367,,
Chorley Borough Council,http://statistics.data.gov.uk/id/local-authority/30UE,Homelessness,1075,Early Intervention,Rental Bond Scheme,40241,Miscellaneous Expenses,5034,bond ADDRESS REDACTED,21/12/2018,0134603,546.00,Revenue,Mahoney Gray Estates & Letting Agents,77697,,
Chorley Borough Council,http://statistics.data.gov.uk/id/local-authority/30UE,Unapportionable Central OHeads,1009,Policy & Governance,Agency Staff,13000,Direct Employee Expenses,5001,AGENCY COST,07/12/2018,0133856,730.45,Revenue,Matrix SCM Ltd,22128,,
Chorley Borough Council,http://statistics.data.gov.uk/id/local-authority/30UE,Central Support Services,1009,Policy & Governance,Agency Staff,13000,Direct Employee Expenses,5001,AGENCY COST,07/12/2018,0134064,523.20,Revenue,Matrix SCM Ltd,22128,,
Chorley Borough Council,http://statistics.data.gov.uk/id/local-authority/30UE,Unapportionable Central OHeads,1009,Policy & Governance,Agency Staff,13000,Direct Employee Expenses,5001,AGENCY COST,07/12/2018,0134064,377.19,Revenue,Matrix SCM Ltd,22128,,
Chorley Borough Council,http://statistics.data.gov.uk/id/local-authority/30UE,Unapportionable Central OHeads,1009,Policy & Governance,Agency Staff,13000,Direct Employee Expenses,5001,AGENCY COST,07/12/2018,0134064,730.45,Revenue,Matrix SCM Ltd,22128,,
Chorley Borough Council,http://statistics.data.gov.uk/id/local-authority/30UE,Central Support Services,1009,Policy & Governance,Agency Staff,13000,Direct Employee Expenses,5001,AGENCY COST,07/12/2018,0134183,"1,046.40",Revenue,Matrix SCM Ltd,22128,,
Chorley Borough Council,http://statistics.data.gov.uk/id/local-authority/30UE,Unapportionable Central OHeads,1009,Policy & Governance,Agency Staff,13000,Direct Employee Expenses,5001,AGENCY COST,07/12/2018,0134183,706.11,Revenue,Matrix SCM Ltd,22128,,
Chorley Borough Council,http://statistics.data.gov.uk/id/local-authority/30UE,Unapportionable Central OHeads,1009,Policy & Governance,Agency Staff,13000,Direct Employee Expenses,5001,AGENCY COST,07/12/2018,0134183,730.45,Revenue,Matrix SCM Ltd,22128,,
Chorley Borough Council,http://statistics.data.gov.uk/id/local-authority/30UE,Unapportionable Central OHeads,1009,Policy & Governance,Agency Staff,13000,Direct Employee Expenses,5001,AGENCY COST,11/12/2018,0134350,876.26,Revenue,Matrix SCM Ltd,22128,,
Chorley Borough Council,http://statistics.data.gov.uk/id/local-authority/30UE,Unapportionable Central OHeads,1009,Business Development & Growth,Planned Maintenance,20006,Repairs Maintenance & Alts,5005,Annual Purchase order for water monitoring,19/12/2018,0134490,601.24,Revenue,Maxigiene Environmental Services Ltd,67160,,
Chorley Borough Council,http://statistics.data.gov.uk/id/local-authority/30UE,Service Management & Support,1009,Customer & Digital,Supplies-Grounds Maintenance,40025,"Equipment, Furniture & Materia",5023,20 ton of Mushroom compost,05/12/2018,0134196,400.00,Revenue,Mc & Ma Stewart (Haulage Ltd),16627,,
Chorley Borough Council,http://statistics.data.gov.uk/id/local-authority/30UE,Capital,Capital,Customer & Digital,Other Capital Related Fees,03024,Capital Expenditure,Capital,20 ton of Ultra Tec,14/12/2018,0134396,423.87,Capital,Mc & Ma Stewart (Haulage Ltd),16627,,
Chorley Borough Council,http://statistics.data.gov.uk/id/local-authority/30UE,Service Management & Support,1009,Customer & Digital,Maintenance Street Furniture,20055,Grounds Maintenance Costs,5013,Camomile Close (just the name plate) Wellington Street Leading To Congress Street (on rails) Hill Top Lane (just the name plate) ,05/12/2018,0134269,413.00,Revenue,Midland Signs (Leicester) Ltd,16606,,
Chorley Borough Council,http://statistics.data.gov.uk/id/local-authority/30UE,Capital,Capital,Early Intervention,Grants,03002,Capital Expenditure,Capital,,19/12/2018,0134476,"3,818.12",Capital,Mint Northwest Ltd,65607,,
Chorley Borough Council,http://statistics.data.gov.uk/id/local-authority/30UE,Capital,Capital,Early Intervention,Grants,03002,Capital Expenditure,Capital,ADDRESS REDACTED,19/12/2018,0134477,"3,842.16",Capital,Mint Northwest Ltd,65607,,
Chorley Borough Council,http://statistics.data.gov.uk/id/local-authority/30UE,Capital,Capital,Early Intervention,Grants,03002,Capital Expenditure,Capital,ADDRESS REDACTED,19/12/2018,0134564,"3,457.45",Capital,Mint Northwest Ltd,65607,,
Chorley Borough Council,http://statistics.data.gov.uk/id/local-authority/30UE,Capital,Capital,Early Intervention,Grants,03002,Capital Expenditure,Capital,ADDRESS REDACTED,19/12/2018,0134652,"3,909.86",Capital,Mint Northwest Ltd,65607,,
Chorley Borough Council,http://statistics.data.gov.uk/id/local-authority/30UE,Capital,Capital,Early Intervention,Grants,03002,Capital Expenditure,Capital,ADDRESS REDACTED,21/12/2018,0134720,"2,521.29",Capital,Mint Northwest Ltd,65607,,
Chorley Borough Council,http://statistics.data.gov.uk/id/local-authority/30UE,Economic Development,1096,Business Development & Growth,Exhibitions & Special Events,40158,Miscellaneous Expenses,5034,Clean/repair work for the 1883 Chorley PALS Memorial on the Flat Iron Car Park as per agreed schedule of work,05/12/2018,0134277,"2,900.00",Revenue,MJR Masonry Services,56017,,
Chorley Borough Council,http://statistics.data.gov.uk/id/local-authority/30UE,Service Management & Support,1009,Customer & Digital,Grounds Maintenance Contractor,20043,Grounds Maintenance Costs,5013,Work carried out at Brinscall Lodge. As part of the Reservoir recommendations Removing tree stumps and re-levelling ground,05/12/2018,0133757,190.00,Revenue,Mr Stephen Scambler,16710,,
Chorley Borough Council,http://statistics.data.gov.uk/id/local-authority/30UE,Service Management & Support,1009,Customer & Digital,Grounds Maintenance Contractor,20043,Grounds Maintenance Costs,5013,LABOUR,05/12/2018,0133757,90.00,Revenue,Mr Stephen Scambler,16710,,
Chorley Borough Council,http://statistics.data.gov.uk/id/local-authority/30UE,Service Management & Support,1009,Customer & Digital,Tools & Equipment - Hire,40004,"Equipment, Furniture & Materia",5023,Hire of a mini digger,21/12/2018,0134441,515.00,Revenue,Mr Stephen Scambler,16710,,
Chorley Borough Council,http://statistics.data.gov.uk/id/local-authority/30UE,Economic Development,1096,Business Development & Growth,Miscellaneous Expenses,40200,Miscellaneous Expenses,5034,Advert for Chorley Market in the Chorley Citizen.,19/12/2018,0134439,289.43,Revenue,Newsquest (Lancashire) Limited,18117,,
Chorley Borough Council,http://statistics.data.gov.uk/id/local-authority/30UE,Unapportionable Central OHeads,1009,Policy & Governance,Laundry,40042,"Clothing, Uniforms and Laundry",5025,Table Linen and Towels Laundered and Pressed Collected and Delivered to W/E: 7th December 2018,19/12/2018,0134520,395.50,Revenue,North West Ironing & Laundry Centre,20450,,
Chorley Borough Council,http://statistics.data.gov.uk/id/local-authority/30UE,Unapportionable Central OHeads,1009,Policy & Governance,Laundry,40042,"Clothing, Uniforms and Laundry",5025,Tablecloths Laundered and Pressed Tea Towels Laundered To 31st October 2018,19/12/2018,0134521,545.00,Revenue,North West Ironing & Laundry Centre,20450,,
Chorley Borough Council,http://statistics.data.gov.uk/id/local-authority/30UE,Unapportionable Central OHeads,1009,Customer & Digital,Professional Fees,14011,Direct Employee Expenses,5001,"Building Control Archive Scanning 2,000 Large Format Black and White 30,000 A3/4/5 Documents(Images) (Indexed as individual",21/12/2018,0133492,"2,562.70",Revenue,Northgate Public Services (UK) Limited,18285,,
Chorley Borough Council,http://statistics.data.gov.uk/id/local-authority/30UE,Unapportionable Central OHeads,1009,Customer & Digital,Professional Fees,14011,Direct Employee Expenses,5001,"Building Control Archive Scanning 2,000 Large Format Black and White 30,000 A3/4/5 Documents(Images) (Indexed as individual",14/12/2018,0134291,"1,337.30",Revenue,Northgate Public Services (UK) Limited,18285,,
Chorley Borough Council,http://statistics.data.gov.uk/id/local-authority/30UE,Central Support Services,1009,Customer & Digital,Computer - Support Services,40111,Communication and Computing,5028,for Update of Anite VPN,19/12/2018,0134442,425.00,Revenue,Northgate Public Services (UK) Limited,18285,,
Chorley Borough Council,http://statistics.data.gov.uk/id/local-authority/30UE,Central Support Services,1009,Business Development & Growth,Electricity,20013,Energy Costs,5006,Nov-18,14/12/2018,0134390,285.01,Revenue,Npower Commercial Gas,16814,,
Chorley Borough Council,http://statistics.data.gov.uk/id/local-authority/30UE,Unapportionable Central OHeads,1009,Business Development & Growth,Electricity,20013,Energy Costs,5006,Nov-18,21/12/2018,0134560,"1,082.38",Revenue,Npower Commercial Gas,16814,,
Chorley Borough Council,http://statistics.data.gov.uk/id/local-authority/30UE,Unapportionable Central OHeads,1009,Business Development & Growth,Electricity,20013,Energy Costs,5006,Nov-18,21/12/2018,0134583,"2,526.37",Revenue,Npower Commercial Gas,16814,,
Chorley Borough Council,http://statistics.data.gov.uk/id/local-authority/30UE,Unapportionable Central OHeads,1009,Business Development & Growth,Electricity,20013,Energy Costs,5006,Nov-18,21/12/2018,0134584,"3,940.66",Revenue,Npower Commercial Gas,16814,,
Chorley Borough Council,http://statistics.data.gov.uk/id/local-authority/30UE,Parking Services,1066,Business Development & Growth,Electricity,20013,Energy Costs,5006,1 September 2018 - 30 November 2018,21/12/2018,0134620,443.58,Revenue,Npower Commercial Gas,16814,,
Chorley Borough Council,http://statistics.data.gov.uk/id/local-authority/30UE,Homelessness,1075,Business Development & Growth,Electricity,20013,Energy Costs,5006,2 September 2018 - 1 December 2018,21/12/2018,0134621,490.12,Revenue,Npower Commercial Gas,16814,,
Chorley Borough Council,http://statistics.data.gov.uk/id/local-authority/30UE,Democratic Represent and  Mgnt,1007,Business Development & Growth,Electricity,20013,Energy Costs,5006,2 September 2018 - 1 December 2018,21/12/2018,0134623,940.75,Revenue,Npower Commercial Gas,16814,,
Chorley Borough Council,http://statistics.data.gov.uk/id/local-authority/30UE,Democratic Represent and  Mgnt,1007,Business Development & Growth,Electricity,20013,Energy Costs,5006,2 September 2018 - 1 December 2018,21/12/2018,0134624,"2,921.77",Revenue,Npower Commercial Gas,16814,,
Chorley Borough Council,http://statistics.data.gov.uk/id/local-authority/30UE,Democratic Represent and  Mgnt,1007,Business Development & Growth,Electricity,20013,Energy Costs,5006,2 September 2018 - 1 December 2018,21/12/2018,0134626,270.25,Revenue,Npower Commercial Gas,16814,,
Chorley Borough Council,http://statistics.data.gov.uk/id/local-authority/30UE,Parking Services,1066,Business Development & Growth,Miscellaneous Expenses,40200,Miscellaneous Expenses,5034,Supply x3 staff to provide Steward services at Chorley on Tuesday Saturdays only from 03.11.18 29.12.18. Except Christmas Day,05/12/2018,0134283,"2,494.78",Revenue,NSL Limited,67253,,
Chorley Borough Council,http://statistics.data.gov.uk/id/local-authority/30UE,Parking Services,1066,Business Development & Growth,External Contractors,50008,Private Contractors,5042,"New Contract starting 01.11.18 Provision of off street car park enforcement, cash collection, cash counting facilities and third party",07/12/2018,0134310,"4,575.19",Revenue,NSL Limited,67253,,
Chorley Borough Council,http://statistics.data.gov.uk/id/local-authority/30UE,Central Support Services,1009,Customer & Digital,Computer - Support Services,40111,Communication and Computing,5028,"Nviron Consultancy Pack, 2 x Pre Purchased Days To be used for DC Migration Project Change Req",19/12/2018,0134648,"1,860.00",Revenue,Nviron Limited,77141,,
Chorley Borough Council,http://statistics.data.gov.uk/id/local-authority/30UE,Central Support Services,1009,Customer & Digital,Consultants` Fees,40077,Services,5027,Nviron Consultancy Pre Purchased & Discounted 113 Directed Days based on Invoice with PO payment @ 850.00per day,21/12/2018,0134656,"84,999.99",Revenue,Nviron Limited,77141,,
Chorley Borough Council,http://statistics.data.gov.uk/id/local-authority/30UE,Parking Services,1066,Business Development & Growth,Tools & Equipment - Purchase,40003,"Equipment, Furniture & Materia",5023,Installation /Civils work of Strada machine by our nominated CHAS registered  sub-contractor. Price is based on 2no machines ,05/12/2018,0134246,990.00,Revenue,Parkeon Ltd,16279,,
Chorley Borough Council,http://statistics.data.gov.uk/id/local-authority/30UE,Parking Services,1066,Business Development & Growth,Tools & Equipment - Purchase,40003,"Equipment, Furniture & Materia",5023,Commissioning of Strada machine: described in ESPO 509 @ 55.00 per unit,05/12/2018,0134246,110.00,Revenue,Parkeon Ltd,16279,,
Chorley Borough Council,http://statistics.data.gov.uk/id/local-authority/30UE,Parking Services,1066,Business Development & Growth,External Contractors,50008,Private Contractors,5042,Parking PCN Audit Adjustment following 2017/2018 Audit Certificate,19/12/2018,0134582,315.35,Revenue,PATROL,21859,,
Chorley Borough Council,http://statistics.data.gov.uk/id/local-authority/30UE,Capital,Capital,Business Development & Growth,Consultants Fees,03025,Capital Expenditure,Capital,To provide the Quantity Surveying Market Walk & associated schemes (previous order no: PRD052595),05/12/2018,0134215,"11,171.78",Capital,Perfect Circle JV Ltd,76438,,
Chorley Borough Council,http://statistics.data.gov.uk/id/local-authority/30UE,Capital,Capital,Business Development & Growth,Other Capital Related Fees,03024,Capital Expenditure,Capital,Primrose Gardens November 2018,05/12/2018,0134226,"2,432.25",Capital,Perfect Circle JV Ltd,76438,,
Chorley Borough Council,http://statistics.data.gov.uk/id/local-authority/30UE,Service Management & Support,1009,Customer & Digital,Supplies-Grounds Maintenance,40025,"Equipment, Furniture & Materia",5023,24 Ponsettia 12 Boston Ferns 36 Ivy 48 Yellow Begonias,05/12/2018,0134279,313.20,Revenue,Peter H Smith Limited,17088,,
Chorley Borough Council,http://statistics.data.gov.uk/id/local-authority/30UE,Central Support Services,1009,Early Intervention,External Contractor,40198,Miscellaneous Expenses,5034,Pest Control services for 2018/19,11/12/2018,0134371,340.00,Revenue,Peter L Johnson,16727,,
Chorley Borough Council,http://statistics.data.gov.uk/id/local-authority/30UE,Central Support Services,1009,Early Intervention,External Contractor,40198,Miscellaneous Expenses,5034,Pest Control services for 2018/19,19/12/2018,0134599,340.00,Revenue,Peter L Johnson,16727,,
Chorley Borough Council,http://statistics.data.gov.uk/id/local-authority/30UE,Central Support Services,1009,Early Intervention,External Contractor,40198,Miscellaneous Expenses,5034,Pest Control services for 2018/19,21/12/2018,0134683,340.00,Revenue,Peter L Johnson,16727,,
Chorley Borough Council,http://statistics.data.gov.uk/id/local-authority/30UE,Service Management & Support,1009,Customer & Digital,Diesel/Derv,30007,Direct Transport Costs,5016,as per quotation on the chest - to supply and deliver 7000L road diesel to Bengal Street depot @ 1.06 per litre,14/12/2018,0134412,"7,420.00",Revenue,Pilkington Oils,18075,,
Chorley Borough Council,http://statistics.data.gov.uk/id/local-authority/30UE,Central Support Services,1009,Early Intervention,Other Contributions,40145,Grants and Subscriptions,5031,2018 - 2019 funding for PCSO`s in Chorley area,19/12/2018,0134472,"27,500.00",Revenue,Police & Crime Commissioner,17548,,
Chorley Borough Council,http://statistics.data.gov.uk/id/local-authority/30UE,Business Support,1095,Early Intervention,Printing,40043,"Printing, Stationery & General",5026, 2 Large mesh banners for the show apartment,11/12/2018,0133605,296.46,Revenue,Poppy Signs Ltd,21898,,
Chorley Borough Council,http://statistics.data.gov.uk/id/local-authority/30UE,Parking Services,1066,Business Development & Growth,Miscellaneous Expenses,40200,Miscellaneous Expenses,5034,As per quote ref 11615/2 Re : Friday Street - Upper deck Tariff signs. Total price for batch of 2 identical signs comprising post ,05/12/2018,0134139,"1,322.01",Revenue,Poppy Signs Ltd,21898,,
Chorley Borough Council,http://statistics.data.gov.uk/id/local-authority/30UE,Central Support Services,1009,Early Intervention,Other Fees,40212,Miscellaneous Expenses,5034,Safer & Secure Scheme,11/12/2018,0134285,546.33,Revenue,Preston Care and Repair,50018,,
Chorley Borough Council,http://statistics.data.gov.uk/id/local-authority/30UE,Private Sector HSG Renewal,1073,Early Intervention,External Contractor,40198,Miscellaneous Expenses,5034,Provision of Handyperson Services Q3 18/19 (funded by LCC IHIS),11/12/2018,0134394,"7,405.75",Revenue,Preston Care and Repair,50018,,
Chorley Borough Council,http://statistics.data.gov.uk/id/local-authority/30UE,Elections,1012,Policy & Governance,Postages,40082,Communication and Computing,5028,type A review postage letter x870,14/12/2018,0134429,329.73,Revenue,Print Image Facilities LLP,57870,,
Chorley Borough Council,http://statistics.data.gov.uk/id/local-authority/30UE,Elections,1012,Policy & Governance,Printing,40043,"Printing, Stationery & General",5026,3rd run ITR`s,05/12/2018,0134247,635.37,Revenue,Print Image Network,21171,,
Chorley Borough Council,http://statistics.data.gov.uk/id/local-authority/30UE,Elections,1012,Policy & Governance,Printing,40043,"Printing, Stationery & General",5026,1438 postal vote applications (requested at annual canvass),05/12/2018,0134276,"1,266.65",Revenue,Print Image Network,21171,,
Chorley Borough Council,http://statistics.data.gov.uk/id/local-authority/30UE,Other Short Term Creditors,,Policy & Governance,General Balances,00100,Balance Sheet,Balance,,19/12/2018,0134699,"2,373.50",Revenue,PRUDENTIAL,18178,,
Chorley Borough Council,http://statistics.data.gov.uk/id/local-authority/30UE,Homelessness,1075,Early Intervention,Hire Of Vehicles and Plant,30028,Contrct Hire & Operating Lease,5018,Transport to Manchester Airport 27/11/2018,05/12/2018,0134168,360.00,Revenue,R S Tyrer Ltd,16255,,
Chorley Borough Council,http://statistics.data.gov.uk/id/local-authority/30UE,Non Domestic Rates Redistribut,,Policy & Governance,Levy to Business Rates Pool,49003,Expenditure not in NCOS,,business rates pool,05/12/2018,0134249,"84,356.00",Revenue,Ribble Valley Borough Council,77109,,
Chorley Borough Council,http://statistics.data.gov.uk/id/local-authority/30UE,Corporate Management,1008,Early Intervention,Professional Fees,40063,Services,5027,housing data analysis,05/12/2018,0134281,"2,750.00",Revenue,Rightmove Group Ltd,77717,,
Chorley Borough Council,http://statistics.data.gov.uk/id/local-authority/30UE,Democratic Represent and  Mgnt,1007,Business Development & Growth,Electricity,20013,Energy Costs,5006,23 August 2018 - 20 November 2018,05/12/2018,0134136,704.78,Revenue,Scottish Power,18998,,
Chorley Borough Council,http://statistics.data.gov.uk/id/local-authority/30UE,Business Support,1095,Business Development & Growth,Electricity,20013,Energy Costs,5006,Nov-18,19/12/2018,0134588,295.44,Revenue,Scottish Power,18998,,
Chorley Borough Council,http://statistics.data.gov.uk/id/local-authority/30UE,Homelessness,1075,Early Intervention,External Contractor,40198,Miscellaneous Expenses,5034,Concierge services until 31/03/2019,05/12/2018,0134061,"2,621.50",Revenue,Sector Security Services,19269,,
Chorley Borough Council,http://statistics.data.gov.uk/id/local-authority/30UE,Homelessness,1075,Early Intervention,External Contractor,40198,Miscellaneous Expenses,5034,Concierge services until 31/03/2019,07/12/2018,0134288,"2,640.23",Revenue,Sector Security Services,19269,,
Chorley Borough Council,http://statistics.data.gov.uk/id/local-authority/30UE,Business Support,1095,Business Development & Growth,Security Service,40062,Services,5027,Provide security services at Market Walk Shopping Centre from 1st April 2018 to 31st March 2019 @6683 per month - Contract,21/12/2018,0134612,"6,683.00",Revenue,Securitas Security Services (UK) Ltd,70693,,
Chorley Borough Council,http://statistics.data.gov.uk/id/local-authority/30UE,Business Support,1095,Business Development & Growth,Promotional Expenses,40159,Miscellaneous Expenses,5034,"Site id: GBRT09 Market Walk Chorley � Footfall Annual DFM covering period of 01/07/18  30/06/19. Prop Ref: APB: 837",19/12/2018,0134421,"3,093.00",Revenue,Shoppertrak Ltd,76208,,
Chorley Borough Council,http://statistics.data.gov.uk/id/local-authority/30UE,Central Support Services,1009,Customer & Digital,Consultants` Fees,40077,Services,5027,Contractor NAME REDACTED invoice,19/12/2018,0134587,"2,738.00",Revenue,Simon Daniel Booth,57624,,
Chorley Borough Council,http://statistics.data.gov.uk/id/local-authority/30UE,Development Control,1091,Customer & Digital,Consultants` Fees,40077,Services,5027,ICT Consultancy Work - October,21/12/2018,0134627,"2,992.00",Revenue,Simon Daniel Booth,57624,,
Chorley Borough Council,http://statistics.data.gov.uk/id/local-authority/30UE,Democratic Represent and  Mgnt,1007,Early Intervention,Consultants` Fees,40077,Services,5027,Shadow Bid and Options Appraisal,05/12/2018,0134203,"4,702.33",Revenue,Sport Leisure and Culture Consultancy,77651,,
Chorley Borough Council,http://statistics.data.gov.uk/id/local-authority/30UE,Democratic Represent and  Mgnt,1007,Policy & Governance,Grants To Other Organisations,40127,Grants and Subscriptions,5031,Councillor community Grant 2018/19,19/12/2018,0134663,250.00,Revenue,Springfield Park Leisure Centre,70493,,
Chorley Borough Council,http://statistics.data.gov.uk/id/local-authority/30UE,Control Accounts,Control,Policy & Governance,Manual Control Account,00001,Balance Sheet,Balance,"Refund Suite 4, Oak House",14/12/2018,CRREF82,49.22,Revenue,SSE Swalec,76853,,
Chorley Borough Council,http://statistics.data.gov.uk/id/local-authority/30UE,Control Accounts,Control,Policy & Governance,Manual Control Account,00001,Balance Sheet,Balance,"Refund Suite 6, Oak House",14/12/2018,CRREF82,49.39,Revenue,SSE Swalec,76853,,
Chorley Borough Council,http://statistics.data.gov.uk/id/local-authority/30UE,Control Accounts,Control,Policy & Governance,Manual Control Account,00001,Balance Sheet,Balance,"Refund Suite 1, Oak House",14/12/2018,CRREF82,48.56,Revenue,SSE Swalec,76853,,
Chorley Borough Council,http://statistics.data.gov.uk/id/local-authority/30UE,Control Accounts,Control,Policy & Governance,Manual Control Account,00001,Balance Sheet,Balance,"Refund Suite 5, Oak House",14/12/2018,CRREF82,50.14,Revenue,SSE Swalec,76853,,
Chorley Borough Council,http://statistics.data.gov.uk/id/local-authority/30UE,Control Accounts,Control,Policy & Governance,Manual Control Account,00001,Balance Sheet,Balance,"Refund Landlords Supply, Oak House",14/12/2018,CRREF82,185.22,Revenue,SSE Swalec,76853,,
Chorley Borough Council,http://statistics.data.gov.uk/id/local-authority/30UE,Control Accounts,Control,Policy & Governance,Manual Control Account,00001,Balance Sheet,Balance,"Refund Suite 2, Oak House",14/12/2018,CRREF82,187.44,Revenue,SSE Swalec,76853,,
Chorley Borough Council,http://statistics.data.gov.uk/id/local-authority/30UE,Capital,Capital,Business Development & Growth,Other Capital Related Fees,03024,Capital Expenditure,Capital,Provision of Public Realm & Highway Design Engineering services as per contract for a period of 30 months from w/c 5th June 17,14/12/2018,0134455,"2,700.00",Capital,Street Civil Engineering Limited,76750,,
Chorley Borough Council,http://statistics.data.gov.uk/id/local-authority/30UE,Capital,Capital,Business Development & Growth,Main Contractor,03007,Capital Expenditure,Capital,Harpers Rec Bowls Hut improvement works,19/12/2018,0134219,"2,800.00",Capital,Stringfellow Bldg Cntrctrs Ltd,17893,,
Chorley Borough Council,http://statistics.data.gov.uk/id/local-authority/30UE,Unapportionable Central OHeads,1009,Business Development & Growth,Planned Maintenance,20006,Repairs Maintenance & Alts,5005,Harpers Rec Bowls Hut improvement works,19/12/2018,0134219,"3,560.00",Revenue,Stringfellow Bldg Cntrctrs Ltd,17893,,
Chorley Borough Council,http://statistics.data.gov.uk/id/local-authority/30UE,Homelessness,1075,Business Development & Growth,General Repairs - Reactive,20004,Repairs Maintenance & Alts,5005,Initial works to Properties,05/12/2018,0134220,434.74,Revenue,Stringfellow Bldg Cntrctrs Ltd,17893,,
Chorley Borough Council,http://statistics.data.gov.uk/id/local-authority/30UE,Homelessness,1075,Business Development & Growth,General Repairs - Reactive,20004,Repairs Maintenance & Alts,5005,Initial works to Properties,05/12/2018,0134223,"1,652.86",Revenue,Stringfellow Bldg Cntrctrs Ltd,17893,,
Chorley Borough Council,http://statistics.data.gov.uk/id/local-authority/30UE,Unapportionable Central OHeads,1009,Business Development & Growth,General Repairs - Reactive,20004,Repairs Maintenance & Alts,5005,Blanket reactive Nov18 onwards,05/12/2018,0134224,511.07,Revenue,Stringfellow Bldg Cntrctrs Ltd,17893,,
Chorley Borough Council,http://statistics.data.gov.uk/id/local-authority/30UE,Unapportionable Central OHeads,1009,Business Development & Growth,General Repairs - Reactive,20004,Repairs Maintenance & Alts,5005,Blanket reactive Nov18 onwards,05/12/2018,0134228,"1,005.60",Revenue,Stringfellow Bldg Cntrctrs Ltd,17893,,
Chorley Borough Council,http://statistics.data.gov.uk/id/local-authority/30UE,Homelessness,1075,Business Development & Growth,General Repairs - Reactive,20004,Repairs Maintenance & Alts,5005,Initial works to Properties,05/12/2018,0134229,"1,119.71",Revenue,Stringfellow Bldg Cntrctrs Ltd,17893,,
Chorley Borough Council,http://statistics.data.gov.uk/id/local-authority/30UE,Capital,Capital,Early Intervention,Grants,03002,Capital Expenditure,Capital,ADDRESS REDACTED,07/12/2018,0134267,"2,300.00",Capital,Stringfellow Bldg Cntrctrs Ltd,17893,,
Chorley Borough Council,http://statistics.data.gov.uk/id/local-authority/30UE,Capital,Capital,Early Intervention,Grants,03002,Capital Expenditure,Capital,,07/12/2018,0134317,"3,759.10",Capital,Stringfellow Bldg Cntrctrs Ltd,17893,,
Chorley Borough Council,http://statistics.data.gov.uk/id/local-authority/30UE,Capital,Capital,Early Intervention,Grants,03002,Capital Expenditure,Capital,,07/12/2018,0134324,"2,790.00",Capital,Stringfellow Bldg Cntrctrs Ltd,17893,,
Chorley Borough Council,http://statistics.data.gov.uk/id/local-authority/30UE,Central Support Services,1009,Business Development & Growth,General Repairs - Reactive,20004,Repairs Maintenance & Alts,5005,Blanket reactive Nov18 onwards,20/12/2018,0134537,"1,181.47",Revenue,Stringfellow Bldg Cntrctrs Ltd,17893,,
Chorley Borough Council,http://statistics.data.gov.uk/id/local-authority/30UE,Central Support Services,1009,Business Development & Growth,General Repairs - Reactive,20004,Repairs Maintenance & Alts,5005,Blanket reactive Nov18 onwards,20/12/2018,0134542,"2,350.00",Revenue,Stringfellow Bldg Cntrctrs Ltd,17893,,
Chorley Borough Council,http://statistics.data.gov.uk/id/local-authority/30UE,Homelessness,1075,Business Development & Growth,General Repairs - Reactive,20004,Repairs Maintenance & Alts,5005,Initial works to  Properties,20/12/2018,0134544,"7,810.18",Revenue,Stringfellow Bldg Cntrctrs Ltd,17893,,
Chorley Borough Council,http://statistics.data.gov.uk/id/local-authority/30UE,Homelessness,1075,Business Development & Growth,Asset Maintenance Fund,20012,Repairs Maintenance & Alts,5005,On-going Reactive repairs for properties,21/12/2018,0134613,920.82,Revenue,Stringfellow Bldg Cntrctrs Ltd,17893,,
Chorley Borough Council,http://statistics.data.gov.uk/id/local-authority/30UE,Capital,Capital,Early Intervention,Grants,03002,Capital Expenditure,Capital,,20/12/2018,0134670,"3,462.50",Capital,Stringfellow Bldg Cntrctrs Ltd,17893,,
Chorley Borough Council,http://statistics.data.gov.uk/id/local-authority/30UE,Capital,Capital,Early Intervention,Grants,03002,Capital Expenditure,Capital,ADDRESS REDACTED,20/12/2018,0134693,"10,440.00",Capital,Stringfellow Bldg Cntrctrs Ltd,17893,,
Chorley Borough Council,http://statistics.data.gov.uk/id/local-authority/30UE,Democratic Represent and  Mgnt,1007,Business Development & Growth,Asset Maintenance Fund,20012,Repairs Maintenance & Alts,5005,Scaffolding hire for roofing works at Astley Hall x 20 weeks,20/12/2018,0134718,"1,049.40",Revenue,Stringfellow Bldg Cntrctrs Ltd,17893,,
Chorley Borough Council,http://statistics.data.gov.uk/id/local-authority/30UE,Service Management & Support,1009,Customer & Digital,Refuse Collection,20037,Cleaning and Domestic Supplies,5012,Exchange 20 yard street sweeping skip for transportation to Farington Waste Disposal site @64.83 per exchange,05/12/2018,0133777,"1,458.75",Revenue,SUEZ R&R UK LTD,17615,,
Chorley Borough Council,http://statistics.data.gov.uk/id/local-authority/30UE,Service Management & Support,1009,Customer & Digital,Refuse Collection,20037,Cleaning and Domestic Supplies,5012,Exchange 35 yard street cleaning & fly tipping skip for transportation to Whinny Hill Waste disposal site @97.25 per exchange,05/12/2018,0133777,"1,555.92",Revenue,SUEZ R&R UK LTD,17615,,
Chorley Borough Council,http://statistics.data.gov.uk/id/local-authority/30UE,Service Management & Support,1009,Customer & Digital,Refuse Collection,20037,Cleaning and Domestic Supplies,5012,Exchange 35 yard Green Waste skip for delivery to your depot for processing @ 70.00 per exchange,05/12/2018,0133777,350.00,Revenue,SUEZ R&R UK LTD,17615,,
Chorley Borough Council,http://statistics.data.gov.uk/id/local-authority/30UE,Service Management & Support,1009,Customer & Digital,Refuse Collection,20037,Cleaning and Domestic Supplies,5012,Disposal Charge for Green Waste contained in 35 yard skip @37.50 per unit,05/12/2018,0133777,221.25,Revenue,SUEZ R&R UK LTD,17615,,
Chorley Borough Council,http://statistics.data.gov.uk/id/local-authority/30UE,Service Management & Support,1009,Customer & Digital,Refuse Collection,20037,Cleaning and Domestic Supplies,5012,Exchange 20 yard street sweeping skip for transportation to Farington Waste Disposal site @64.83 per exchange,14/12/2018,0134358,"1,491.09",Revenue,SUEZ R&R UK LTD,17615,,
Chorley Borough Council,http://statistics.data.gov.uk/id/local-authority/30UE,Service Management & Support,1009,Customer & Digital,Refuse Collection,20037,Cleaning and Domestic Supplies,5012,Exchange 35 yard street cleaning & fly tipping skip for transportation to Whinny Hill Waste disposal site @97.25 per exchange,14/12/2018,0134358,"1,264.25",Revenue,SUEZ R&R UK LTD,17615,,
Chorley Borough Council,http://statistics.data.gov.uk/id/local-authority/30UE,Service Management & Support,1009,Customer & Digital,Refuse Collection,20037,Cleaning and Domestic Supplies,5012,Exchange 35 yard Green Waste skip for delivery to your depot for processing @ 70.00 per exchange,14/12/2018,0134358,490.00,Revenue,SUEZ R&R UK LTD,17615,,
Chorley Borough Council,http://statistics.data.gov.uk/id/local-authority/30UE,Service Management & Support,1009,Customer & Digital,Refuse Collection,20037,Cleaning and Domestic Supplies,5012,Disposal Charge for Green Waste contained in 35 yard skip @37.50 per unit,14/12/2018,0134358,512.25,Revenue,SUEZ R&R UK LTD,17615,,
Chorley Borough Council,http://statistics.data.gov.uk/id/local-authority/30UE,Unapportionable Central OHeads,1009,Customer & Digital,Refuse Collection,20037,Cleaning and Domestic Supplies,5012,Trade waste collection and disposal from Chorley Council Buildings (Aug 2018 - March 2019) CIVIC OFFICES Union St ,14/12/2018,0134360,250.30,Revenue,SUEZ R&R UK LTD,17615,,
Chorley Borough Council,http://statistics.data.gov.uk/id/local-authority/30UE,Unapportionable Central OHeads,1009,Customer & Digital,Refuse Collection,20037,Cleaning and Domestic Supplies,5012,Trade waste collection and disposal from Chorley Council Buildings (Aug 2018 - March 2019) TOWN HALL. market street ,14/12/2018,0134360,250.30,Revenue,SUEZ R&R UK LTD,17615,,
Chorley Borough Council,http://statistics.data.gov.uk/id/local-authority/30UE,Community Development,1097,Customer & Digital,Refuse Collection,20037,Cleaning and Domestic Supplies,5012,Trade waste collection and disposal from Chorley Council Buildings (Aug 2018 - March 2019) MP`s OFFICE ,14/12/2018,0134360,41.72,Revenue,SUEZ R&R UK LTD,17615,,
Chorley Borough Council,http://statistics.data.gov.uk/id/local-authority/30UE,Democratic Represent and  Mgnt,1007,Customer & Digital,Refuse Collection,20037,Cleaning and Domestic Supplies,5012,Provision of Trade waste collection for EAVES GREEN CC (Aug 2018- March 2019) (1 x 360 litre bin per week),14/12/2018,0134360,28.75,Revenue,SUEZ R&R UK LTD,17615,,
Chorley Borough Council,http://statistics.data.gov.uk/id/local-authority/30UE,Democratic Represent and  Mgnt,1007,Customer & Digital,Refuse Collection,20037,Cleaning and Domestic Supplies,5012,Provision of Trade waste collection for  ASTLEY VILLAGE CC (Aug 2018- March 2019) (1 x 360 litre bin per week),14/12/2018,0134360,28.75,Revenue,SUEZ R&R UK LTD,17615,,
Chorley Borough Council,http://statistics.data.gov.uk/id/local-authority/30UE,Recreation & Sport,1037,Customer & Digital,Miscellaneous Expenses,40200,Miscellaneous Expenses,5034,Provision of Trade waste collection for LANCASTER WAY CC (Aug 2018- March 2019) (1 x 360 litre bin per week),14/12/2018,0134360,28.75,Revenue,SUEZ R&R UK LTD,17615,,
Chorley Borough Council,http://statistics.data.gov.uk/id/local-authority/30UE,Recreation & Sport,1037,Customer & Digital,Miscellaneous Expenses,40200,Miscellaneous Expenses,5034,Provision of Trade waste collection for BUTTERMERE GREEN CC (Aug 2018- March 2019) (1 x 360 litre bin per week),14/12/2018,0134360,28.75,Revenue,SUEZ R&R UK LTD,17615,,
Chorley Borough Council,http://statistics.data.gov.uk/id/local-authority/30UE,Democratic Represent and  Mgnt,1007,Customer & Digital,Refuse Collection,20037,Cleaning and Domestic Supplies,5012,Provision of Trade waste collection for CLAYTON BROOK VILLAGE HALL (Aug 2018- March 2019) (6 x refuse sack per week),14/12/2018,0134360,22.19,Revenue,SUEZ R&R UK LTD,17615,,
Chorley Borough Council,http://statistics.data.gov.uk/id/local-authority/30UE,Democratic Represent and  Mgnt,1007,Customer & Digital,Refuse Collection,20037,Cleaning and Domestic Supplies,5012,Provision of Trade waste collection for ASTLEY HALL (Aug 2018- March 2019) (1 x 1100 litre bin per week),14/12/2018,0134360,41.72,Revenue,SUEZ R&R UK LTD,17615,,
Chorley Borough Council,http://statistics.data.gov.uk/id/local-authority/30UE,Capital,Capital,Business Development & Growth,Consultants Fees,03025,Capital Expenditure,Capital,Additional works for Chorley Cemetery as agreed with NAME REDACTED - site meeting on 14/11/2018,14/12/2018,0134305,550.00,Capital,Survey Operations Ltd,55910,,
Chorley Borough Council,http://statistics.data.gov.uk/id/local-authority/30UE,Central Support Services,1009,Customer & Digital,Computer Equipment-Purchase,40098,Communication and Computing,5028,Remainder of contract,14/12/2018,0134216,892.50,Revenue,Technology Solutions,72376,,
Chorley Borough Council,http://statistics.data.gov.uk/id/local-authority/30UE,Economic Development,1096,Business Development & Growth,General Subscriptions,40146,Grants and Subscriptions,5031,CCTV User Group Membership renewal December 2018 (as per email from NAME REDACTED),11/12/2018,0134392,275.00,Revenue,The CCTV User Group,68077,,
Chorley Borough Council,http://statistics.data.gov.uk/id/local-authority/30UE,Central Support Services,1009,Customer & Digital,Miscellaneous Expenses,40200,Miscellaneous Expenses,5034,Network procurement. Value of the PO is subject to any variances to the exchange rate at the time of placing the order through ,19/12/2018,0133049,"165,718.93",Revenue,The Networking People (NorthWest) Ltd T/a TNP Ltd,73446,,
Chorley Borough Council,http://statistics.data.gov.uk/id/local-authority/30UE,Central Support Services,1009,Customer & Digital,Computer Equipment-Purchase,40098,Communication and Computing,5028,"9 x TNPSFP- QSFP-40G-LR4 - 40G QSFP+ LR4 LC 10 km, &#955; 1271-1331 nm, Singlemode @ 607.27",19/12/2018,0133053,"5,465.43",Revenue,The Networking People (NorthWest) Ltd T/a TNP Ltd,73446,,
Chorley Borough Council,http://statistics.data.gov.uk/id/local-authority/30UE,Central Support Services,1009,Customer & Digital,Computer Equipment-Purchase,40098,Communication and Computing,5028,"15 x TNPSFP-SFP-10G-LR - 10G SFP+ LR 10 km, &#955; 1310 nm, Singlemode, LC Lifetime warranty @ 97.15",19/12/2018,0133053,"1,457.25",Revenue,The Networking People (NorthWest) Ltd T/a TNP Ltd,73446,,
Chorley Borough Council,http://statistics.data.gov.uk/id/local-authority/30UE,Central Support Services,1009,Customer & Digital,Computer Equipment-Purchase,40098,Communication and Computing,5028,"15 x TNPSFP-GLC-T - 1000BASE-T Copper SFP 100 m, RJ-45, Autoneg Lifetime warranty @ 40.49",19/12/2018,0133053,607.35,Revenue,The Networking People (NorthWest) Ltd T/a TNP Ltd,73446,,
Chorley Borough Council,http://statistics.data.gov.uk/id/local-authority/30UE,Central Support Services,1009,Customer & Digital,Computer Equipment-Purchase,40098,Communication and Computing,5028,"12 x TNPSFP-SFP-10G-BXD-I - 10G SFP+ BIDI LR LC 10 km, &#7488;&#739;1330 / &#7487;&#739;1270 m Singlemode Lifetime",19/12/2018,0133053,"1,169.76",Revenue,The Networking People (NorthWest) Ltd T/a TNP Ltd,73446,,
Chorley Borough Council,http://statistics.data.gov.uk/id/local-authority/30UE,Central Support Services,1009,Customer & Digital,Computer Equipment-Purchase,40098,Communication and Computing,5028,"10 x TNPSFP-SFP-10G-BXU-I - 10G SFP+ BIDI LR LC 10 km, &#7488;&#739;1270 / &#7487;&#739;1330 m Singlemode Lifetime",19/12/2018,0133053,974.80,Revenue,The Networking People (NorthWest) Ltd T/a TNP Ltd,73446,,
Chorley Borough Council,http://statistics.data.gov.uk/id/local-authority/30UE,Central Support Services,1009,Customer & Digital,Computer Equipment-Purchase,40098,Communication and Computing,5028,"17 x TNPSFP-GLC-LH-SM - 1G SFP LX 10 km, &#955; 1310 nm, Singlemode, LC Lifetime warranty @ 29.99",19/12/2018,0133053,509.83,Revenue,The Networking People (NorthWest) Ltd T/a TNP Ltd,73446,,
Chorley Borough Council,http://statistics.data.gov.uk/id/local-authority/30UE,Central Support Services,1009,Customer & Digital,Computer Equipment-Purchase,40098,Communication and Computing,5028,2 x PA-24-LCD-24S - 19`` 48 fibre LC duplex patchpanel 1U. Adjustable mounting ears. Grey RAL7035 24 s/mode LC duplex ,19/12/2018,0133053,134.98,Revenue,The Networking People (NorthWest) Ltd T/a TNP Ltd,73446,,
Chorley Borough Council,http://statistics.data.gov.uk/id/local-authority/30UE,Central Support Services,1009,Customer & Digital,Computer Equipment-Purchase,40098,Communication and Computing,5028,15metre 48 fibre 9/125um tight buffered cable assembly preterminated with LCS connectors both ends. Includes pulling socks,19/12/2018,0133053,403.76,Revenue,The Networking People (NorthWest) Ltd T/a TNP Ltd,73446,,
Chorley Borough Council,http://statistics.data.gov.uk/id/local-authority/30UE,Central Support Services,1009,Customer & Digital,Computer Equipment-Purchase,40098,Communication and Computing,5028,Pre-term fibre installation,19/12/2018,0133053,600.00,Revenue,The Networking People (NorthWest) Ltd T/a TNP Ltd,73446,,
Chorley Borough Council,http://statistics.data.gov.uk/id/local-authority/30UE,Central Support Services,1009,Customer & Digital,Computer Equipment-Purchase,40098,Communication and Computing,5028,"25 x Fibre patch leads, lengths to suit @ 10.00",19/12/2018,0133053,250.00,Revenue,The Networking People (NorthWest) Ltd T/a TNP Ltd,73446,,
Chorley Borough Council,http://statistics.data.gov.uk/id/local-authority/30UE,Central Support Services,1009,Customer & Digital,Computer Equipment-Purchase,40098,Communication and Computing,5028,"45 x AIR-AP1562I-E-K9 - 802.11ac W2 Low-Profile Outdoor AP, Internal Ant, E Reg Dom.",19/12/2018,0134124,"18,675.00",Revenue,The Networking People (NorthWest) Ltd T/a TNP Ltd,73446,,
Chorley Borough Council,http://statistics.data.gov.uk/id/local-authority/30UE,Central Support Services,1009,Customer & Digital,Computer Equipment-Purchase,40098,Communication and Computing,5028,45 x AIR-ACC1530-PMK2= - Pole Mount Kit for AP1530 Series with tilt adjustment,19/12/2018,0134124,"2,343.60",Revenue,The Networking People (NorthWest) Ltd T/a TNP Ltd,73446,,
Chorley Borough Council,http://statistics.data.gov.uk/id/local-authority/30UE,Central Support Services,1009,Customer & Digital,Computer Equipment-Purchase,40098,Communication and Computing,5028,45 x C1FPAIRK9 - Cisco ONE Foundation Perpetual - Wireless,19/12/2018,0134124,"3,328.80",Revenue,The Networking People (NorthWest) Ltd T/a TNP Ltd,73446,,
Chorley Borough Council,http://statistics.data.gov.uk/id/local-authority/30UE,Central Support Services,1009,Customer & Digital,Computer Equipment-Purchase,40098,Communication and Computing,5028,40 x CON-ECMU-C1FPAIR - SWSS UPGRADES SMS-1,19/12/2018,0134124,"4,396.00",Revenue,The Networking People (NorthWest) Ltd T/a TNP Ltd,73446,,
Chorley Borough Council,http://statistics.data.gov.uk/id/local-authority/30UE,Central Support Services,1009,Customer & Digital,Computer Equipment-Purchase,40098,Communication and Computing,5028,Engineering - Config and installation,19/12/2018,0134124,"3,250.00",Revenue,The Networking People (NorthWest) Ltd T/a TNP Ltd,73446,,
Chorley Borough Council,http://statistics.data.gov.uk/id/local-authority/30UE,Central Support Services,1009,Customer & Digital,Computer Equipment-Purchase,40098,Communication and Computing,5028,Delivery,19/12/2018,0134124,20.00,Revenue,The Networking People (NorthWest) Ltd T/a TNP Ltd,73446,,
Chorley Borough Council,http://statistics.data.gov.uk/id/local-authority/30UE,Central Support Services,1009,Customer & Digital,Computer - Support Services,40111,Communication and Computing,5028,TNP Engineering day to oversee Adept performance testing,11/12/2018,0134266,650.00,Revenue,The Networking People (NorthWest) Ltd T/a TNP Ltd,73446,,
Chorley Borough Council,http://statistics.data.gov.uk/id/local-authority/30UE,Democratic Represent and  Mgnt,1007,Customer & Digital,Playground Equipment,40008,"Equipment, Furniture & Materia",5023,Annual inspection for Astley Park and Rangletts Recreation Park Play Areas,21/12/2018,0134605,450.00,Revenue,The Play Inspection Company,20632,,
Chorley Borough Council,http://statistics.data.gov.uk/id/local-authority/30UE,Unapportionable Central OHeads,1009,Policy & Governance,Other Fees,40212,Miscellaneous Expenses,5034,Design and print of Mayor`s official Christmas card with envelopes. Quantity 230.,11/12/2018,0134391,288.25,Revenue,The Print Quarter,17987,,
Chorley Borough Council,http://statistics.data.gov.uk/id/local-authority/30UE,Unapportionable Central OHeads,1009,Policy & Governance,Publicity - Advertising,40157,Miscellaneous Expenses,5034,4x6 sheet posters,21/12/2018,0134657,276.00,Revenue,The Print Quarter,17987,,
Chorley Borough Council,http://statistics.data.gov.uk/id/local-authority/30UE,Tourism,1039,Policy & Governance,Publicity - Advertising,40157,Miscellaneous Expenses,5034,Chorley Flower Show Advert,07/12/2018,0134235,280.00,Revenue,TI Media Limited,70838,,
Chorley Borough Council,http://statistics.data.gov.uk/id/local-authority/30UE,Central Support Services,1009,Business Development & Growth,Professional Fees,40063,Services,5027,Development Management Services - Alker Lane,19/12/2018,0134609,"4,500.00",Revenue,Trebbi Continuum,77723,,
Chorley Borough Council,http://statistics.data.gov.uk/id/local-authority/30UE,Unapportionable Central OHeads,1009,Policy & Governance,Exhibitions & Special Events,40158,Miscellaneous Expenses,5034,1  AV Supply 24Sqm LED Truck mounted screen - Multiple PTZ cameras / vision mix Inc all associated cables - 2 x crew plus ,05/12/2018,0134280,"2,695.00",Revenue,UK Media and Events Limited,71221,,
Chorley Borough Council,http://statistics.data.gov.uk/id/local-authority/30UE,Unapportionable Central OHeads,1009,Customer & Digital,Service Fees,40056,Services,5027,2018-19 daily hybrid mail & annual billing,14/12/2018,0133739,764.47,Revenue,UKMAIL Ltd (Mail),57758,,
Chorley Borough Council,http://statistics.data.gov.uk/id/local-authority/30UE,Unapportionable Central OHeads,1009,Customer & Digital,Service Fees,40056,Services,5027,2018-19 daily hybrid & annual billing,14/12/2018,0133741,781.30,Revenue,UKMAIL Ltd (Mail),57758,,
Chorley Borough Council,http://statistics.data.gov.uk/id/local-authority/30UE,Unapportionable Central OHeads,1009,Customer & Digital,Service Fees,40056,Services,5027,2018-19 daily hybrid mail & annual billing,14/12/2018,0133742,"1,101.35",Revenue,UKMAIL Ltd (Mail),57758,,
Chorley Borough Council,http://statistics.data.gov.uk/id/local-authority/30UE,Unapportionable Central OHeads,1009,Customer & Digital,Service Fees,40056,Services,5027,Daily hybrid mail & annual billing,21/12/2018,0134527,"1,190.07",Revenue,UKMAIL Ltd (Mail),57758,,
Chorley Borough Council,http://statistics.data.gov.uk/id/local-authority/30UE,Unapportionable Central OHeads,1009,Customer & Digital,Service Fees,40056,Services,5027,Daily hybrid mail & annual billing,21/12/2018,0134528,863.97,Revenue,UKMAIL Ltd (Mail),57758,,
Chorley Borough Council,http://statistics.data.gov.uk/id/local-authority/30UE,Unapportionable Central OHeads,1009,Customer & Digital,Service Fees,40056,Services,5027,Daily hybrid mail & annual billing,21/12/2018,0134529,711.40,Revenue,UKMAIL Ltd (Mail),57758,,
Chorley Borough Council,http://statistics.data.gov.uk/id/local-authority/30UE,Unapportionable Central OHeads,1009,Customer & Digital,Service Fees,40056,Services,5027,Daily hybrid mail & annual billing,21/12/2018,0134531,815.67,Revenue,UKMAIL Ltd (Mail),57758,,
Chorley Borough Council,http://statistics.data.gov.uk/id/local-authority/30UE,Unapportionable Central OHeads,1009,Customer & Digital,Service Fees,40056,Services,5027,Daily hybrid mail & annual billing,21/12/2018,0134533,664.79,Revenue,UKMAIL Ltd (Mail),57758,,
Chorley Borough Council,http://statistics.data.gov.uk/id/local-authority/30UE,Control Accounts,Control,Policy & Governance,General Balances,00100,Balance Sheet,Balance,Monthly Deductions from December Payroll,14/12/2018,0134553,"2,497.16",Revenue,Unify Credit Union Ltd,55509,,
Chorley Borough Council,http://statistics.data.gov.uk/id/local-authority/30UE,Business Support,1095,Business Development & Growth,Miscellaneous Expenses,40200,Miscellaneous Expenses,5034,For business loan facilitation 2017/2018 and underwriting of delinquent loans.,19/12/2018,0134585,708.31,Revenue,Unify Credit Union Ltd,55509,,
Chorley Borough Council,http://statistics.data.gov.uk/id/local-authority/30UE,Housing Strategy,1069,Business Development & Growth,Training Course Fees,17010,Indirect Employee Expenses,5002,"Fees 2018/19 Academic Year, MSc Planning PT (Yr.2) Sponsorship of Students",05/12/2018,0134236,"4,750.00",Revenue,University Of Manchester,16852,,
Chorley Borough Council,http://statistics.data.gov.uk/id/local-authority/30UE,Capital,Capital,Business Development & Growth,Consultants Fees,03025,Capital Expenditure,Capital,CDM advisor for Chorley Cemetery works,14/12/2018,0132406,585.00,Capital,Urban Design and Consult Ltd,77318,,
Chorley Borough Council,http://statistics.data.gov.uk/id/local-authority/30UE,Democratic Represent and  Mgnt,1007,Policy & Governance,Exhibitions & Special Events,40158,Miscellaneous Expenses,5034,Filming and editing for Astley Illuminated Promo video on 24th November 2018. 500 fee for filming; 100 expenses for travel ,21/12/2018,0134725,600.00,Revenue,Urubu Ltd,77584,,
Chorley Borough Council,http://statistics.data.gov.uk/id/local-authority/30UE,Corporate Management,1008,Customer & Digital,Unitary Payment(S),50009,Private Contractors,5042,Provision of waste and recycling collection service and ancillary services for 2018/19.,05/12/2018,0134245,"283,978.53",Revenue,Veolia ES (UK) Ltd,20748,,
Chorley Borough Council,http://statistics.data.gov.uk/id/local-authority/30UE,Service Management & Support,1009,Customer & Digital,Supplies-Grounds Maintenance,40025,"Equipment, Furniture & Materia",5023,Daffodil Varieties Tulip Varieties Polyanthus Varieties  Pieris  Trailing Ivy,05/12/2018,0134116,"4,815.15",Revenue,Walkers Oakfield Nurseries,63090,,
Chorley Borough Council,http://statistics.data.gov.uk/id/local-authority/30UE,Unapportionable Central OHeads,1009,Business Development & Growth,Water - Metered Supplies,20022,Water Services,5009,28/8/18 to 20/11/18,05/12/2018,0134131,"1,164.06",Revenue,Water-plus,17926,,
Chorley Borough Council,http://statistics.data.gov.uk/id/local-authority/30UE,Homelessness,1075,Business Development & Growth,Water - Metered Supplies,20022,Water Services,5009,20/8/18 to 29/11/18,11/12/2018,0134315,657.60,Revenue,Water-plus,17926,,
Chorley Borough Council,http://statistics.data.gov.uk/id/local-authority/30UE,Unapportionable Central OHeads,1009,Business Development & Growth,Water - Metered Supplies,20022,Water Services,5009,23/8/18 tp 29/11/18,11/12/2018,0134318,"2,049.16",Revenue,Water-plus,17926,,
Chorley Borough Council,http://statistics.data.gov.uk/id/local-authority/30UE,Economic Development,1096,Business Development & Growth,Water - Metered Supplies,20022,Water Services,5009,12/9/18 to 3/12/18,19/12/2018,0134474,537.68,Revenue,Water-plus,17926,,
Chorley Borough Council,http://statistics.data.gov.uk/id/local-authority/30UE,Democratic Represent and  Mgnt,1007,Business Development & Growth,Water - Metered Supplies,20022,Water Services,5009,19/09/18 to 11/12/18,19/12/2018,0134667,"1,184.37",Revenue,Water-plus,17926,,
Chorley Borough Council,http://statistics.data.gov.uk/id/local-authority/30UE,Control Accounts,Control,Policy & Governance,Manual Control Account,00001,Balance Sheet,Balance,Refund Tatton Community Centre,14/12/2018,CRREF81,306.55,Revenue,Water-plus,17926,,
Chorley Borough Council,http://statistics.data.gov.uk/id/local-authority/30UE,Unapportionable Central OHeads,1009,Chief Executive,Postages,40082,Communication and Computing,5028,Collection of mail from Town Hall and Union Street,19/12/2018,0134643,267.09,Revenue,Whistl North Limited,67256,,
Chorley Borough Council,http://statistics.data.gov.uk/id/local-authority/30UE,Democratic Represent and  Mgnt,1007,Policy & Governance,Grants To Other Organisations,40127,Grants and Subscriptions,5031,Councillor Community Grant 2018/2019,21/12/2018,0134686,250.00,Revenue,Whittle and Clayton Cricket Club,57315,,
Chorley Borough Council,http://statistics.data.gov.uk/id/local-authority/30UE,Capital,Capital,Business Development & Growth,Main Contractor,03007,Capital Expenditure,Capital,Design and Build Strawberry Fields Digital Hub - Chorley,11/12/2018,0134308,"872,524.68",Capital,Willmott Dixon Constuction Ltd,77420,,
Chorley Borough Council,http://statistics.data.gov.uk/id/local-authority/30UE,Capital,Capital,Business Development & Growth,Main Contractor,03007,Capital Expenditure,Capital,Design and Build Strawberry Fields Digital Hub - Chorley,19/12/2018,0134702,"313,293.20",Capital,Willmott Dixon Constuction Ltd,77420,,
Chorley Borough Council,http://statistics.data.gov.uk/id/local-authority/30UE,Service Management & Support,1009,Customer & Digital,Vehicles and Plant Maintenance,30045,Direct Transport Costs,5016,"as per invoice 11477 carry out service on PO15VHD, replace worn wiper blades, replace worn front brake pads, replace worn rear",14/12/2018,0134431,355.23,Revenue,Wrekamendid Services Ltd,21188,,
Chorley Borough Council,http://statistics.data.gov.uk/id/local-authority/30UE,Democratic Represent and  Mgnt,1007,Business Development & Growth,Planned Maintenance,20006,Repairs Maintenance & Alts,5005,po raised on wrong ac,11/12/2018,0134261,"5,756.00",Revenue,WYG Environment Planning Transport Limited,76236,,
Chorley Borough Council,http://statistics.data.gov.uk/id/local-authority/30UE,Central Support Services,1009,Early Intervention,Miscellaneous Expenses,40200,Miscellaneous Expenses,5034,Supply of 1 x Defibrillator Sign / 8 x large poly windows / 48 x small poly windows / Rivets and clips to install all windows. ,21/12/2018,0134707,339.56,Revenue,X2 Connect Ltd,77403,,
